{"text_format":"1","workbook":"xlsx","n_sheets":4,"sheets":["Кэфы","Выгрузка с сайта","Выгрузка","Вычисления"],"not_rendered":{"charts":0,"images":1,"macros":1,"external_links":0,"defined_names":2,"comments":0,"pivot_tables":0},"unopened":[],"bounds":{"document_bytes":16777216,"sheet_cells":100000,"rows_first":2000,"rows_last":500,"rows_between":2000,"halvings":0,"cell_chars":16384,"cell_head_chars":4096},"cells_cut":0,"cells_raw":0,"read":"whole","date_system":"1900"}

{"sheet":"Кэфы","index":0,"n_rows":25,"n_cols":6,"rows_kept":25,"cut":false,"hidden":false,"merged":[[15,1,18,5]]}
[]
[]
[]
[null,"До следующего обновления цен на рыбу осталось:",null,null,{"$f":"HOUR(TEXT(IF(TEXT(MID(INDEX(Выгрузка!$A:$A,MATCH(\"Последнее изменение цен было в *\",Выгрузка!$A:$A,0),1),32,5)*1+5/24,\"ч:мм\")*1-(NOW()-TODAY())<0, TEXT(MID(INDEX(Выгрузка!$A:$A,MATCH(\"Последнее изменение цен было в *\",Выгрузка!$A:$A,0),1),32,5)*1+5/24,\"ч:мм\")*1-(NOW()-TODAY())+1,TEXT(MID(INDEX(Выгрузка!$A:$A,MATCH(\"Последнее изменение цен было в *\",Выгрузка!$A:$A,0),1),32,5)*1+5/24,\"ч:мм\")*1-(NOW()-TODAY())),\"ч:мм\"))&\"ч \"&MINUTE(TEXT(IF(TEXT(MID(INDEX(Выгрузка!$A:$A,MATCH(\"Последнее изменение цен было в *\",Выгрузка!$A:$A,0),1),32,5)*1+5/24,\"ч:мм\")*1-(NOW()-TODAY())<0, TEXT(MID(INDEX(Выгрузка!$A:$A,MATCH(\"Последнее изменение цен было в *\",Выгрузка!$A:$A,0),1),32,5)*1+5/24,\"ч:мм\")*1-(NOW()-TODAY())+1,TEXT(MID(INDEX(Выгрузка!$A:$A,MATCH(\"Последнее изменение цен было в *\",Выгрузка!$A:$A,0),1),32,5)*1+5/24,\"ч:мм\")*1-(NOW()-TODAY())),\"ч:мм\"))&\"мин\"","v":"2ч 0мин"},"реального времени"]
[]
[null,"Кит","Шт.","Текущий кэф","Макс. кэф","% от макс.*"]
[null,"Кашалот",{"$f":"INDEX(Вычисления!$1:$1048576,MATCH($B7,Вычисления!$A:$A,0)-2,5)","v":510},{"$f":"IF(C7<=10, \"Баг с ценой\", VLOOKUP(B7,Вычисления!$A:$E,5,0))","v":0.81825289620895802},{"$f":"VLOOKUP(B7,Вычисления!$A:$F,6,0)","v":0.83876515976174448},{"$f":"IF(D7=\"Баг с ценой\", \"Не продавай!\",D7/E7)","v":0.9755446881477372}]
[null,"Кит горбатый",{"$f":"INDEX(Вычисления!$1:$1048576,MATCH($B8,Вычисления!$A:$A,0)-2,5)","v":201},{"$f":"IF(C8<=10, \"Баг с ценой\", VLOOKUP(B8,Вычисления!$A:$E,5,0))","v":1.0872174512757282},{"$f":"VLOOKUP(B8,Вычисления!$A:$F,6,0)","v":1.0977624927753302},{"$f":"IF(D8=\"Баг с ценой\", \"Не продавай!\",D8/E8)","v":0.99039405921681445}]
[null,"Кит горбатый-альбинос",{"$f":"INDEX(Вычисления!$1:$1048576,MATCH($B9,Вычисления!$A:$A,0)-2,5)","v":186},{"$f":"IF(C9<=10, \"Баг с ценой\", VLOOKUP(B9,Вычисления!$A:$E,5,0))","v":1.7178955060296943},{"$f":"VLOOKUP(B9,Вычисления!$A:$F,6,0)","v":1.7333038033197636},0.99111044626997413]
[null,"Кит синий северный",{"$f":"INDEX(Вычисления!$1:$1048576,MATCH($B10,Вычисления!$A:$A,0)-2,5)","v":145},{"$f":"IF(C10<=10, \"Баг с ценой\", VLOOKUP(B10,Вычисления!$A:$E,5,0))","v":1.4344310032534637},{"$f":"VLOOKUP(B10,Вычисления!$A:$F,6,0)","v":1.4444404440865881},0.99307036792406211]
[null,"Кит серый",{"$f":"INDEX(Вычисления!$1:$1048576,MATCH($B11,Вычисления!$A:$A,0)-2,5)","v":13},{"$f":"IF(C11<=10, \"Баг с ценой\", VLOOKUP(B11,Вычисления!$A:$E,5,0))","v":0.95272379655098383},{"$f":"VLOOKUP(B11,Вычисления!$A:$F,6,0)","v":0.95331858008701886},0.99937609153072338]
[null,"Кит японский",{"$f":"INDEX(Вычисления!$1:$1048576,MATCH($B12,Вычисления!$A:$A,0)-2,5)","v":320},{"$f":"IF(C12<=10, \"Баг с ценой\", VLOOKUP(B12,Вычисления!$A:$E,5,0))","v":2.1335276997838535},{"$f":"VLOOKUP(B12,Вычисления!$A:$F,6,0)","v":2.1666634991004274},0.98470653180323964]
[null,"Сейвал или кит ивасевый",{"$f":"INDEX(Вычисления!$1:$1048576,MATCH($B13,Вычисления!$A:$A,0)-2,5)","v":106},{"$f":"IF(C13<=10, \"Баг с ценой\", VLOOKUP(B13,Вычисления!$A:$E,5,0))","v":0.614377387521305},{"$f":"VLOOKUP(B13,Вычисления!$A:$F,6,0)","v":0.61751196087268223},0.99492386617589179]
[null,"Финвал",{"$f":"INDEX(Вычисления!$1:$1048576,MATCH($B14,Вычисления!$A:$A,0)-2,5)","v":5222},{"$f":"IF(C14<=10, \"Баг с ценой\", VLOOKUP(B14,Вычисления!$A:$E,5,0))","v":0.75380366565884604},{"$f":"VLOOKUP(B14,Вычисления!$A:$F,6,0)","v":1.0045350644866518},0.75040055077028378]
[]
[null,"* Показывает в %, насколько текущая цена велика в сравнении с максимальной известной мне. Условные обозначения в виде стрелок и соответствующие значения описаны под таблицей. Изучи их и прими решение о продаже самостоятельно или в соответствии с рекомендациями."]
[]
[]
[]
[]
[null,"[98% - 100%] Смело продавай, прекрасная цена"]
[null,"[95% - 98%] Тоже отличная цена, но нередко бывает лучше"]
[null,"[90% - 95%] Средняя цена. Лучше придержи и продай позже"]
[null,"[80% - 90%] Плохая цена. Продавай, только если срочно нужны деньги"]
[null,"Ниже 80% Рыба не в цене. Ни в коем случае не продавай"]

{"sheet":"Выгрузка с сайта","index":1,"n_rows":1465,"n_cols":5,"rows_kept":1465,"cut":false,"hidden":true,"merged":[]}
["Место:","Рыба:","Рыба:2","Прогресс:","Продано (шт):"]
[1,"","Форель Бива","",0]
[2,"","Полосатик Омуры","",0]
[4,"","Сельдь атлантическая","",0]
[5,"","Вьюн амурский","",0]
[6,"","Каранкс бронзовый","",0]
[7,"","Морская свинья обыкновенная","",0]
[8,"","Кит южный гладкий","",0]
[9,"","Каранкс Гебера","",0]
[10,"","Кинжалозуб","",0]
[11,"","Бэрардиус Бэрда","",0]
[12,"","Акула мозамбикская бычья","",0]
[13,"","Морская свинья бесперая","",0]
[14,"","Рыба луна короткая","",0]
[15,"","Косаткодельфин","",0]
[16,"","Пузанок северокаспийский","",0]
[17,"","Сельдь тихоокеанская","",0]
[18,"","Сельдь волжская","",0]
[19,"","Менхэден бразильский","",0]
[20,"","Сельдь чёшско-печорская","",0]
[21,"","Эолидия","",0]
[23,"","Осетр корейский","",0]
[32,"","Кланкулюс","",0]
[33,"","Граммистес шестиполосый","",0]
[34,"","Чешуйчатник","",0]
[35,"","Семапрохилодус","",0]
[36,"","Рыба-тряпка","",0]
[38,"","Тилозур красноморский","",0]
[41,"","Конус письменный","",0]
[42,"","Рыба-луна овальная","",0]
[43,"","Акула сигарная","",0]
[44,"","Акула скульптурная","",0]
[45,"","Акула - свинья","",0]
[46,"","Акула острозубая","",0]
[47,"","Акула светлохвостая","",0]
[48,"","Лихия","",0]
[49,"","Маллисквама","",0]
[50,"","Камбала двухцветная","",0]
[51,"","Акула шершавая","",0]
[52,"","Калкан черноморский","",0]
[53,"","Кижуч озерный","",0]
[55,"","Голец узонский","",0]
[59,"","Акула губастая","",0]
[60,"","Форель остроголовая","",0]
[62,"","Осетр тихоокеанский","",0]
[63,"","Минога сибирская","",0]
[64,"","Группер Малабарский","",0]
[65,"","Афалина","",0]
[66,"","Кит синий альбинос","",0]
[68,"","Осьминог Думбо","",0]
[69,"","Косатка малая","",0]
[70,"","Манта рифовая","",0]
[71,"","Антимора  клюворылая","",0]
[72,"","Ремнезуб командорский","",0]
[73,"","Осетр адриатический","",0]
[74,"","Плиотрема","",0]
[75,"","Сарпа","",0]
[76,"","Пилонос японский","",0]
[77,"","Палтус американский","",0]
[78,"","Австралийский пилонос","",0]
[80,"","Змея рисовая","",0]
[81,"","Центрина Австралийская","",0]
[82,"","Форель Дональдсона","",0]
[83,"","Хвостокол кольчатый","",0]
[84,"","Свистулька голубопятнистая","",0]
[89,"","Кит Бискайский","",0]
[90,"","Сферомия пятнистая","",0]
[91,"","Китовая акула - альбинос","",0]
[92,"","","",0]
[93,"","Тигровая рыба обыкновенная","",0]
[94,"","Мелания песчаная","",0]
[96,"","Лягушка нильская","",0]
[97,"","Сом жирафовый","",0]
[100,"","Крылатка-зебра","",0]
[101,"","Акула свиноглазая","",0]
[105,"","Принцесса Бурунди","",0]
[116,"","Кит Акишима","",0]
[117,"","Скафокогия","",0]
[119,"","Аулонокара Ньяса","",0]
[122,"","Королева Танганьики","",0]
[124,"","Королева Ньяса","",0]
[125,"","Фахака","",0]
[126,"","Конус березовый","",0]
[127,"","Конус дворцовый","",0]
[128,"","Крокодил нильский","",0]
[131,"","Конус текстильный","",0]
[133,"","Конус полосатый","",0]
[134,"","Конус Мильн-Эдвардса","",0]
[135,"","Конус мраморный","",0]
[146,"","Акула - квагга","",0]
[149,"","Карась-барабан","",0]
[150,"","Шипощёк длинноперый","",0]
[154,"","Мурена гигантская","",0]
[155,"","Скат-орляк пятнистый","",0]
[157,"","Синодонтис вуалевый","",0]
[158,"","Велифер","",0]
[159,"","Аба-аба","",0]
[160,"","Горгасия красноморская","",0]
[161,"","Линофрина индийская","",0]
[162,"","Рыба-кабан трехполосая","",0]
[163,"","Удильщик Джонсона","",0]
[164,"","Макрурус вооруженный","",0]
[165,"","Группер белоокаймленный","",0]
[166,"","Оксимонокант длиннорылый","",0]
[167,"","Зубатка синяя","",0]
[168,"","Креветка северная","",0]
[170,"","Волютопсиус каштановый","",0]
[171,"","Необерингиус Фрилея","",0]
[174,"","Краб вельветовый","",0]
[176,"","Ремнезуб атлантический","",0]
[178,"","Ампуллярия","",0]
[181,"","Хемиодопсис","",0]
[183,"","Серцевидка","",0]
[184,"","Морская свинья Далля","",0]
[185,"","Акула плоскоголовая","",0]
[187,"","Единорог расписной","",0]
[189,"","Рыбальдо","",0]
[191,"","Морская свинья аргентинская","",0]
[192,"","Нереис","",0]
[193,"","Буффало большеротый","",0]
[195,"","Венера воздушная","",0]
[197,"","Рапана Венозная","",0]
[198,"","Спинорог золотоплавниковый","",0]
[199,"","Глаукус","",0]
[201,"","Ликодонт яванский","",0]
[203,"","Бисса","",0]
[208,"","Уару","",0]
[209,"","Акарихтис Хекеля","",0]
[210,"","Анаконда","",0]
[211,"","Акара голубовато-пятнистая","",0]
[213,"","Кои Платинум Огон","",0]
[214,"","Гидромедуза бразильская","",0]
[215,"","Джакунда","",0]
[216,"","Биара","",0]
[218,"","Астронотус глаздчатый","",0]
[219,"","Скат мозаичный","",0]
[223,"","Осьминог обыкновенный","",0]
[224,"","Чоп","",0]
[225,"","Краб Мраморный","",0]
[226,"","Итальянский усач","",0]
[228,"","Усач Валецкого","",0]
[229,"","Дианема полосатохвостая","",0]
[230,"","Пиранья стройная","",0]
[231,"","Пирапитинга","",0]
[235,"","Тегу","",0]
[239,"","Таедо","",0]
[241,"","Лепоринус Фредерика","",0]
[242,"","Колоссома","",0]
[243,"","Дискус Хеккеля","",0]
[245,"","Павлиний окунь ленточный","",0]
[247,"","Милоссома килебрюхая","",0]
[248,"","Метиннис пятнистый","",0]
[249,"","Милеус ленточный","",0]
[250,"","Форель апачей","",0]
[251,"","Губка-лира","",0]
[252,"","Клюворыл Шепарда","",0]
[253,"","Ремнезуб перуанский","",0]
[254,"","Тауматихт Акселя","",0]
[255,"","Пирарара","",0]
[256,"","Скат акулохвостый","",0]
[257,"","Носорог пятнистый","",0]
[258,"","Матамата","",0]
[259,"","Лазианциструс","",0]
[261,"","Скат гладкий","",0]
[262,"","Саблезуб","",0]
[263,"","Макропинна","",0]
[264,"","Рыба-капля","",0]
[265,"","Пиранья крапчатая","",0]
[266,"","Акула Мицукури","",0]
[267,"","Черный нож","",0]
[269,"","Алепизавр","",0]
[270,"","Пайара","",0]
[271,"","Катран вануатский","",0]
[272,"","Багре хигучи","",0]
[273,"","Рыба-ремень, сельдяной король","",0]
[274,"","Акула черная (Далатия)","",0]
[275,"","Краб-йети","",0]
[276,"","Мегалодон","",0]
[277,"","Голец дальнеозерский","",0]
[278,"","Хирург-Ахиллес","",0]
[279,"","Акула эполетовая","",0]
[280,"","Мешкорот","",0]
[281,"","Галаксия чилийская","",0]
[282,"","Чешуеед,  Плагиотрем чешуеедный","",0]
[283,"","Рыба-сабля","",0]
[284,"","Акула плащеносная","",0]
[285,"","Жемчужная рыба","",0]
[286,"","Акула светящаяся","",0]
[287,"","Акулеола черная","",0]
[288,"","Акула-домовой","",0]
[289,"","Кайман широкомордый","",0]
[290,"","Кои Асаги","",0]
[291,"","Бельдюга Андрияшева","",0]
[293,"","","",0]
[294,"","Костерь","",0]
[296,"","","",0]
[297,"","","",0]
[298,"","","",0]
[299,"","","",0]
[300,"","","",0]
[301,"","","",0]
[302,"","Панцирник мисиссипский","",0]
[303,"","Рак красный флоридский","",0]
[304,"","Панцирник длиннорылый","",0]
[305,"","Евдошка американская","",0]
[306,"","Осетр тупорылый","",0]
[307,"","Омар норвежский","",0]
[308,"","Омар европейский","",0]
[311,"","Осьминог семирукий","",0]
[312,"","","",0]
[313,"","Павлиний окунь королевский","",0]
[314,"","Оринокский крокодил","",0]
[315,"","Акула коромандельская","",0]
[316,"","Нарвал","",0]
[317,"","Гигантская тридакна","",0]
[318,"","Голец чукотский","",0]
[319,"","Морская свинья очковая","",0]
[320,"","Амия","",0]
[321,"","Осетр белый","",0]
[322,"","Хендфиш","",0]
[323,"","Акула исландская","",0]
[325,"","Кои Утсури","",0]
[326,"","","",0]
[327,"","Акула копьезубая","",0]
[328,"","Акула большеротая","",0]
[330,"","Кит гренландский","",0]
[332,"","Скат - кукушка","",0]
[335,"","Флейторыл китайский","",0]
[336,"","Тунец синеперый","",0]
[337,"","Тунец Большеглазый","",0]
[339,"","Акула кубинская ночная","",0]
[340,"","Барракуда Хеллера","",0]
[341,"","Омар капский","",0]
[343,"","Лангуст полифагус","",0]
[346,"","Бомбиль индоокеанский","",0]
[349,"","Спинорог масочный","",0]
[350,"","Спинорог синегорлый","",0]
[351,"","Миксина шестижаберная","",0]
[353,"","Марлин индо-тихоокеанский","",0]
[354,"","Акула лимонная","",0]
[357,"","Ехидна сулавесийская","",0]
[358,"","Вундерпус","",0]
[360,"","Конгер песчаный решетчатый","",0]
[362,"","Полосатик Райса","",0]
[365,"","Наутилус палаванский","",0]
[366,"","Конгер макроцефал","",0]
[367,"","Акула головастая надувающаяся","",0]
[368,"","Акула вислоносая","",0]
[369,"","Акула щелеглазая","",0]
[370,"","Морская змея Хардвика","",0]
[371,"","Прометеева рыба","",0]
[373,"","Кардинал пятнистый","",0]
[374,"","Конгер обуд","",0]
[375,"","","",0]
[376,"","Сцимнодалатия","",0]
[377,"","Цетотерий","",0]
[378,"","Отодус","",0]
[379,"","Акула-молот карибская","",0]
[380,"","Акула юкатанская","",0]
[386,"","Саблезуб короткозубый","",0]
[387,"","Нетопырь длиннорылый","",0]
[388,"","Диплобатис гайянский","",0]
[389,"","Гимантолоф атлантический","",0]
[390,"","Опистопрокт коротконосый","",0]
[391,"","Базилозавр","",0]
[392,"","Акула кубинская кошачья","",0]
[393,"","Акула большеглазая песчаная","",0]
[394,"","Гуаса","",0]
[395,"","Макрель западноафриканская","",0]
[397,"","Батизавр воинственный","",0]
[398,"","Барбурисия рыжая","",0]
[399,"","Омар мозамбикский","",0]
[400,"","Краб крестообразный","",0]
[401,"","Омар алый когтистый","",0]
[404,"","Скопелозавр","",0]
[405,"","Омосудид","",0]
[406,"","Парапристипомоид","",0]
[414,"","Мобула терстони","",0]
[430,"","Акрофизетр","",0]
[448,"","Улуа","",0]
[449,"","Кудрепер длиннорылый","",0]
[458,"","Кит южный гладкий-альбинос","",0]
[465,"","Акула святого Иосифа","",0]
[470,"","Рыба-прилипало","",0]
[474,"","Морская змея Белчера","",0]
[483,"","Махсир золотой","",0]
[486,"","Богаскайа","",0]
[487,"","Змееголов императорский","",0]
[489,"","Змееголов Золотая кобра","",0]
[496,"","Махсир темный","",0]
[499,"","Махсир красный","",0]
[500,"","Акула - небрия","",0]
[502,"","Акула мадагаскарская","",0]
[508,"","Акула пелагическая лисья","",0]
[509,"","Акула пилозубая","",0]
[513,"","Протоптер бурый","",0]
[514,"","Протоптер малый","",0]
[522,"","Мурена ленточная","",0]
[527,"","Скар двухцветный","",0]
[528,"","Платакс - нетопырь","",0]
[529,"","Носорог безрогий","",0]
[530,"","Носорог однорогий","",0]
[532,"","Краб танганьикский","",0]
[534,"","Крокодил узкорылый","",0]
[536,"","Бротула многоусая","",0]
[537,"","Вариола белокаемчатая","",0]
[538,"","Алект вымпельный","",0]
[539,"","Акула большеносая","",0]
[540,"","Акула темная","",0]
[543,"","Мормир бутылконосый","",0]
[548,"","Солидус","",0]
[554,"","Уролоф полосатый","",0]
[562,"","Сом танганьикский","",0]
[563,"","Эферия эллиптическая","",0]
[564,"","Группер желто-синий","",0]
[566,"","Камерония Бургинья","",0]
[568,"","Угорь собачий","",0]
[569,"","Удильщик Коммерсона","",0]
[570,"","Сиган струйчатый","",0]
[571,"","Крылатка антенновая","",0]
[573,"","Трофеус звездчатый","",0]
[574,"","Цихлида-дельфин","",0]
[575,"","Стигматохромис вуди","",0]
[576,"","Сом ширентис","",0]
[578,"","Аспатария пифлоидная","",0]
[579,"","Тифобия","",0]
[583,"","Денебола","",0]
[584,"","Акулка карликовая","",0]
[596,"","Гуативера","",0]
[597,"","Тарпон атлантический","",0]
[598,"","Бычерыл американский","",0]
[602,"","Котилокара","",0]
[606,"","Акула острозубая песчаная","",0]
[607,"","Макрель китайская","",0]
[608,"","Акула американская кунья","",0]
[610,"","Бентодесма","",0]
[612,"","Кубера","",0]
[613,"","Хвостокол американский","",0]
[614,"","","",0]
[616,"","Акула австралийская головастая","",0]
[620,"","Макрель малагасийская","",0]
[621,"","Макрель квинслендская","",0]
[622,"","Макрель продольно-полосатая","",0]
[623,"","Макрель австралийская","",0]
[625,"","Акула гладкозубая","",0]
[626,"","Мурена европейская","",0]
[627,"","Группер индоокеанский малоглазый","",0]
[628,"","Скат-орляк изысканный","",0]
[629,"","Акула-нянька короткохвостая","",0]
[630,"","Подкаменщик пестроногий","",0]
[631,"","Скат Аддисона","",0]
[632,"","Минога каспийская","",0]
[633,"","Дораб","",0]
[634,"","Мобула японская","",0]
[635,"","Скат-орляк белоточечный","",0]
[636,"","Сладкогуб гигантский","",0]
[638,"","Скар рубиновый","",0]
[639,"","Скар широколобый","",0]
[640,"","","",0]
[641,"","Ремнезуб Блэнвиля","",0]
[643,"","Спинорог позолоченый","",0]
[644,"","Хвостокол широкохвостый","",0]
[645,"","Акула - пилохвост","",0]
[646,"","Амфитретус пелагический","",0]
[647,"","Гримпотевтис тихоокеанский","",0]
[648,"","Акула надувающаяся","",0]
[649,"","Мероу красный","",0]
[654,"","Кардинал","",0]
[657,"","Макрель западноатлантическая","",0]
[662,"","Гаррупа-мармита","",0]
[663,"","Трахинот круглый","",0]
[665,"","Трахинот Кеннеди","",0]
[670,"","Дрейссена речная","",0]
[677,"","Змееголов","",0]
[690,"","Вырезуб","",0]
[691,"","Краб съедобный","",0]
[704,"","Сердцевидка съедобная","",0]
[706,"","Фикус изящный","",0]
[711,"","Хризиптера сине-желтая","",0]
[712,"","Акула галапагосская","",0]
[713,"","Гольян Чекановского","",0]
[719,"","Моторо","",0]
[728,"","Форель тигровая","",0]
[730,"","Елец-андруга","",0]
[738,"","Цианея волосистая","",0]
[742,"","Дельфин курносый","",0]
[753,"","Императорский ангел","",0]
[754,"","Ореховидка тонкая","",0]
[758,"","Голец якутский","",0]
[761,"","Кашалот карликовый","",0]
[762,"","Гребешок многообразный","",0]
[763,"","Тонна гигантская","",0]
[773,"","Ерш-носарь","",0]
[776,"","Райская рыба круглохвостая","",0]
[778,"","Краб четырехугольный волосатый","",0]
[779,"","Каракатица лечебная","",0]
[796,"","Минога морская","",0]
[800,"","Энтехинус китайский","",0]
[809,"","Чукучан китайский","",0]
[810,"","Угорь речной американский","",0]
[814,"","Форель золотая","",0]
[815,"","Щука травяная","",0]
[827,"","Щука красноперая","",0]
[828,"","Морская собачка","",0]
[829,"","Форель мраморная","",0]
[835,"","Яго Гаррика","",0]
[845,"","Зевглодон","",0]
[847,"","Зигофицетер","",0]
[848,"","Дельфин речной китайский","",0]
[849,"","Дельфин Хамильтона","",0]
[857,"","Цианея Цетлина","",0]
[858,"","Кассиопея Орната","",0]
[859,"","Дельфин китовидный северный","",0]
[865,"","Солнечник обыкновенный","",0]
[872,"","Дельфин Гектора","",0]
[878,"","Сарган","",0]
[893,"","Глосса","",0]
[899,"","Щука черная","",0]
[901,"","Сплэйк","",0]
[910,"","Гвоздарь Световидова","",0]
[915,"","Аллигатор китайский","",0]
[917,"","Халиклистус Штейнегера","",0]
[921,"","Хирург флаговый","",0]
[924,"","Дельфин крестовидный","",0]
[927,"","Дельфин чилийский","",0]
[930,"","Осетр китайский","",0]
[932,"","Дельфин беломордый","",0]
[938,"","Аурелия ушастая","",0]
[945,"","Дельфин тихоокеанский","",0]
[949,"","Медуза - пушечное ядро","",0]
[952,"","Нерпа байкальская","",0]
[953,"","Дельфин серый","",0]
[961,"","Кораблик португальский","",0]
[964,"","Рыба-бекас","",0]
[965,"","Дорадо золотой","",0]
[968,"","Морская оса","",0]
[972,"","Варан водяной","",0]
[974,"","Веслонос китайский","",0]
[986,"","Идол мавританский","",0]
[991,"","Каракатица расписная","",0]
[995,"","Каури-монета","",0]
[996,"","Пескарь ящерный","",0]
[999,"","Краб кокосовый","",0]
[1001,"","Группер стройный","",0]
[1004,"","Мазутный двухголов","",0]
[1005,"","Рыба-бабочка сомалийская","",0]
[1006,"","Альбула","",0]
[1008,"","Хирург зебровый","",0]
[1011,"","Ряпушка сибирская","",0]
[1015,"","Рыба-белка","",0]
[1017,"","Омуль пенжинский","",0]
[1018,"","Головастик гигантский","",0]
[1022,"","Рапана жилковатая","",0]
[1024,"","Макрурус малоглазый","",0]
[1026,"","Палия кряжевая","",0]
[1027,"","Прудовик","",0]
[1028,"","Улитка","",0]
[1029,"","Ряпушка переславская","",0]
[1030,"","Целакант коморский","",0]
[1031,"","Сиг-востряк","",0]
[1032,"","Минога тихоокеанская","",0]
[1033,"","Горбыль","",0]
[1034,"","Луфарь","",0]
[1035,"","Морская лисица","",0]
[1036,"","Минога украинская","",0]
[1039,"","Калуга","",0]
[1041,"","Угай мелкочешуйный","",0]
[1045,"","Акула белоглазая","",0]
[1049,"","Хвостокол Мацубары","",0]
[1050,"","Сладкогуб пятнистый","",0]
[1052,"","Кассиопея Андромеда","",0]
[1054,"","Хариус лабынкырский","",0]
[1059,"","Тугун","",0]
[1060,"","Уклейка","",0]
[1062,"","Орфа","",0]
[1067,"","Востробрюшка уссурийская","",0]
[1068,"","Чебак","",0]
[1069,"","Даватчан","",0]
[1070,"","Длиннорылый полурыл","",0]
[1073,"","Арапаима","",0]
[1074,"","Кэтфиш","",0]
[1075,"","Лосось каспийский","",0]
[1076,"","Кутум","",0]
[1077,"","Линь золотистый","",0]
[1080,"","Спинорог Розовохвостый","",0]
[1081,"","Спинорог Краснозубый","",0]
[1082,"","Спинорог голубоперый","",0]
[1086,"","Стромбус Королевский","",0]
[1087,"","Черепаха зеленая","",0]
[1091,"","Крокодил Джонстона","",0]
[1092,"","Двухцветная пеламида","",0]
[1093,"","Комета, Каллоплезиопс","",0]
[1095,"","Пигоплит, Королевский ангел","",0]
[1096,"","Энгидрина носатая","",0]
[1098,"","Мелкозубый пилорыл","",0]
[1099,"","Гребешок коралловый","",0]
[1100,"","Сиган звездчатый","",0]
[1101,"","Голец альпийский","",0]
[1102,"","Помакант рябой","",0]
[1103,"","Кузовок рогатый","",0]
[1106,"","Младица или Лосось дунайский","",0]
[1109,"","Евдошка европейская","",0]
[1110,"","Голубая линкия","",0]
[1111,"","Тасманский краб","",0]
[1113,"","Фромия элегантная","",0]
[1115,"","Аротрон колючий","",0]
[1117,"","Гимносарда","",0]
[1118,"","Акула узкозубая","",0]
[1119,"","Ангел  черноплавничный","",0]
[1120,"","Мактра китайская","",0]
[1121,"","Каллитака Адамса","",0]
[1122,"","Гребешок свифта","",0]
[1123,"","Гребешок бело-розовый","",0]
[1124,"","Перонидия жилковатая","",0]
[1125,"","Краб пятиугольный волосатый","",0]
[1127,"","Мерценария стимпсона","",0]
[1128,"","Макома широкая","",0]
[1129,"","Петушок","",0]
[1131,"","Микижа шантарская","",0]
[1134,"","Сиг хадары","",0]
[1135,"","Глицимерис приморский","",0]
[1136,"","Мактра сахалинская","",0]
[1138,"","Морской монах","",0]
[1139,"","Кардиум реснитчатый","",0]
[1140,"","Краб мохнаторукий японский","",0]
[1141,"","Барамунди","",0]
[1143,"","Акула черноперая","",0]
[1144,"","Австралийский шишечник","",0]
[1151,"","Осетр сахалинский","",0]
[1152,"","Карась мухтельский","",0]
[1153,"","Кальмар тихоокеанский","",0]
[1154,"","Краб-стригун японский","",0]
[1155,"","Кальмар командорский","",0]
[1159,"","Мальма южная","",0]
[1160,"","Малакост черный","",0]
[1166,"","Акула песчаная","",0]
[1171,"","Лиманда длиннорылая","",0]
[1184,"","Краб королевский","",0]
[1187,"","Патагонский гребешок","",0]
[1189,"","Лещ колючеперый","",0]
[1198,"","Макропод","",0]
[1199,"","Оникия","",0]
[1200,"","Хапаку","",0]
[1201,"","Кои Сёва","",0]
[1205,"","Буффало черный","",0]
[1208,"","Менёк","",0]
[1209,"","Флейторыл","",0]
[1212,"","Камнеточец","",0]
[1213,"","Усач днепровский","",0]
[1215,"","Краб травяной","",0]
[1217,"","Акула-бык","",0]
[1221,"","Рыба-лира","",0]
[1228,"","Акула кошачья","",0]
[1229,"","Окунь-пират","",0]
[1230,"","Пирапутанга","",0]
[1231,"","Сомик оливковый","",0]
[1235,"","Пескарь - лень","",0]
[1239,"","Макруронус новозеландский","",0]
[1248,"","Лещ белый","",0]
[1255,"","Рак длиннопалый","",0]
[1258,"","Красный конгрио","",0]
[1259,"","Гребешок исландский","",0]
[1260,"","Налим тонкохвостый","",0]
[1264,"","Кои Оренжи Огон","",0]
[1271,"","Черепаха болотная","",0]
[1274,"","Мускулус","",0]
[1276,"","Миксина атлантическая","",0]
[1277,"","Краб китайский мохнорукий","",0]
[1281,"","Краб камчатский","",0]
[1284,"","Владиславия","",0]
[1291,"","Голец-усач сибирский","",0]
[1293,"","Рыба-лягушка","",0]
[1297,"","Лудога","",0]
[1298,"","Звезда-подушка","",0]
[1299,"","Валаамка","",0]
[1300,"","Черепаха саванная","",0]
[1303,"","Морской финик","",0]
[1311,"","Скат-орляк австралийский","",0]
[1316,"","Австралийский колючепёр","",0]
[1317,"","Угорь электрический","",0]
[1318,"","Шортбилл","",0]
[1319,"","Осьминог синекольчатый","",0]
[1322,"","Кальмар обыкновенный","",0]
[24,"","Акула рифовая","",1]
[61,"","Нерка карликовая","",1]
[79,"","Семга Камчатская","",1]
[86,"","Неалот","",1]
[88,"","Мурена перечная","",1]
[99,"","Бородавчатка красноморская","",1]
[102,"","Полиптер","",1]
[114,"","Летрин длиннорылый","",1]
[129,"","Луциан горбатый","",1]
[152,"","Группер красноротый","",1]
[156,"","Скат-торпедо электрический","",1]
[169,"","Зубатка полосатая","",1]
[172,"","Перечный слизняк","",1]
[177,"","Ящерица каймановая","",1]
[180,"","Хараки","",1]
[186,"","Запрора","",1]
[190,"","Перуанская сардина","",1]
[194,"","Буффало малоротый","",1]
[205,"","Краб сине-красный","",1]
[207,"","Кокани","",1]
[212,"","Кои Ямабуки Огон","",1]
[217,"","Аравана черная","",1]
[232,"","Пиранья краснобрюхая","",1]
[233,"","Пираиба","",1]
[238,"","Пираруку","",1]
[244,"","Иния","",1]
[260,"","Утконос","",1]
[268,"","Кракен","",1]
[292,"","Омуль баргузинский","",1]
[295,"","Краб снежный","",1]
[329,"","Плавун южный","",1]
[331,"","Скампи  голубой","",1]
[338,"","Тунец длиннохвостый","",1]
[342,"","Химера длинноносая","",1]
[344,"","Гимнура Натальская","",1]
[345,"","Группер мраморный","",1]
[372,"","Ехидна белолобая","",1]
[381,"","Нотопогон","",1]
[383,"","Анчоус Харденберга","",1]
[385,"","Алаша","",1]
[413,"","Мобула короткоперая","",1]
[416,"","Барракуда большеглазая","",1]
[429,"","Козобородка полосатая","",1]
[440,"","Кохола Пигми","",1]
[441,"","Ау","",1]
[446,"","Рыба-ангел японская","",1]
[475,"","Ластохвост спиральный","",1]
[481,"","Гурами гигантский-альбинос","",1]
[497,"","Усач - гаечный ключ","",1]
[505,"","Хирург белогрудый","",1]
[507,"","Спинорог голубой","",1]
[521,"","Мурена желторотая","",1]
[533,"","Краб монтивагус","",1]
[535,"","Многопёр Эндлихера","",1]
[541,"","Лягушка роющая","",1]
[565,"","Аспатария марнои","",1]
[567,"","Шамбардия Валберга","",1]
[572,"","Кудрепер Форстера","",1]
[588,"","Скватина американская","",1]
[591,"","Кабра-мора","",1]
[603,"","Группер темный","",1]
[604,"","Акула Оустона","",1]
[609,"","Устрица гигантская","",1]
[611,"","Хвостокол бахромчатый","",1]
[619,"","Макрель широкополосая","",1]
[642,"","Элагат","",1]
[650,"","Корифена малая","",1]
[652,"","Гипоплектрус","",1]
[660,"","Снэппер низкотелый","",1]
[675,"","Адамуссиум","",1]
[676,"","Патагонский лобстер","",1]
[679,"","Сом солдатова","",1]
[702,"","Беззубка вуда","",1]
[737,"","Быстрянка","",1]
[739,"","Тонна ленточная","",1]
[749,"","Пятнистая озерная лягушка","",1]
[781,"","Троегуб","",1]
[791,"","Сомик канальный","",1]
[792,"","Рак сигнальный","",1]
[795,"","Шемая черноморская","",1]
[844,"","Лосось Кларка","",1]
[886,"","Спинорог бело-зеленый","",1]
[898,"","Белокровка Аэлиты","",1]
[902,"","Палия американская","",1]
[919,"","Сомик леопардовый","",1]
[923,"","Акула темноперая","",1]
[935,"","Дельфин крупнозубый","",1]
[943,"","Дельфин Хэвисайда","",1]
[954,"","Омуль чивыркуйский","",1]
[997,"","Вариола радужная","",1]
[1000,"","Луциан розовый","",1]
[1003,"","Жерех - лысач","",1]
[1007,"","Кальмар гигантский","",1]
[1009,"","Масляная рыба","",1]
[1010,"","Даллия","",1]
[1012,"","Луциан императорский красный","",1]
[1019,"","Судак глубинный","",1]
[1020,"","Рак пятнистый","",1]
[1023,"","Акула лососевая","",1]
[1025,"","Зубатка дальневосточная","",1]
[1037,"","Кумжа черноморская","",1]
[1047,"","Акула ночная","",1]
[1048,"","Дасцилл зебровидный","",1]
[1061,"","Ряпушка","",1]
[1065,"","Черт лабынкырский","",1]
[1071,"","Осман голый","",1]
[1072,"","Осетр амурский","",1]
[1079,"","Спинорог оранжевополосый","",1]
[1090,"","Аррип малый","",1]
[1097,"","Мангровый джек","",1]
[1105,"","Логгерхед","",1]
[1114,"","Морская звезда красношипая","",1]
[1126,"","Краб-стригун","",1]
[1133,"","Морской ворон","",1]
[1137,"","Серрипес замечательный","",1]
[1148,"","Стромбус волнистый","",1]
[1156,"","Коаро","",1]
[1158,"","Галаксия тасманская","",1]
[1165,"","Промикропс","",1]
[1172,"","Птеригоплихт парчовый","",1]
[1173,"","Абрамитес мраморный","",1]
[1175,"","Мастацембелус краснополосый","",1]
[1177,"","Бельдюга восточная","",1]
[1181,"","Краб колючий","",1]
[1204,"","Пескарь бронзовый","",1]
[1210,"","Букцинум","",1]
[1244,"","Пузанок дунайский","",1]
[1245,"","Пескарь ленский","",1]
[1251,"","Мандаринка","",1]
[1253,"","Акула индонезийская","",1]
[1257,"","Шабути","",1]
[1273,"","Камбала двухлинейная","",1]
[1278,"","Палтус стрелозубый","",1]
[1296,"","Акула зебровая","",1]
[1307,"","Гребешок раскрашенный","",1]
[1309,"","Кайман черный","",1]
[1323,"","Группер странствующий","",1]
[3,"","Кит северный гладкий","",2]
[25,"","Группер таувина","",2]
[57,"","Голец носатый","",2]
[67,"","Токсабрамис","",2]
[108,"","Лабидохромис Хонги","",2]
[111,"","Тиляпия мозамбикская","",2]
[130,"","Плоскоголов пятнистый","",2]
[179,"","Цихлазома мезонаута","",2]
[202,"","Полосатик Идена","",2]
[246,"","Пака","",2]
[324,"","Голец белый","",2]
[334,"","Угорь крапчатый","",2]
[356,"","Ехидна одноцветная","",2]
[363,"","Крайт морской","",2]
[408,"","Барракуда индийская","",2]
[415,"","Барракуда красная","",2]
[420,"","Снэк","",2]
[423,"","Морская змея гладкая","",2]
[426,"","Кохола Поколе","",2]
[433,"","Каракатица японская","",2]
[444,"","Аргонавт","",2]
[463,"","Конгер большеглазый","",2]
[473,"","Гребешок коричневый","",2]
[476,"","Неалот тихоокеанский","",2]
[492,"","Аравана азиатская","",2]
[516,"","Плоскоголов бахромчатый","",2]
[524,"","Группер шестиполосый","",2]
[531,"","Краб малавийский голубой","",2]
[545,"","Мбенга","",2]
[587,"","Фундулюс","",2]
[589,"","Цапатеро-чакета","",2]
[590,"","Амфихт","",2]
[618,"","Акула - нянька усатая","",2]
[653,"","Копьеносец малый","",2]
[669,"","Белуга черноморская","",2]
[681,"","Верхогляд","",2]
[685,"","Косатка-скрипун","",2]
[700,"","Амолопс чунганский","",2]
[703,"","Тюрбо","",2]
[715,"","Корнерот Номуры","",2]
[741,"","Краб красный мангровый","",2]
[751,"","Группер корраловый красный","",2]
[765,"","Саланкс","",2]
[775,"","Вампир адский","",2]
[782,"","Карп гигантский","",2]
[790,"","Минога огайская","",2]
[794,"","Сомик желтый","",2]
[799,"","Голец усатый","",2]
[819,"","Сардина европейская","",2]
[832,"","Сомик голубой","",2]
[838,"","Веслонос","",2]
[903,"","Щука-маскинонг","",2]
[998,"","Черепаха кожистая","",2]
[1002,"","Толстолобик пестрый","",2]
[1016,"","Чилим","",2]
[1038,"","Храмуля","",2]
[1040,"","Палия лудожная","",2]
[1046,"","Сомик черный","",2]
[1083,"","Спинорог желтомордый","",2]
[1084,"","Лямбис подагрический","",2]
[1088,"","Ябби","",2]
[1112,"","Офиура полосатая","",2]
[1130,"","Узо-угай","",2]
[1146,"","Ворчун крапчатый","",2]
[1149,"","Бородавчатка","",2]
[1163,"","Скат лучевой","",2]
[1174,"","Багре гури","",2]
[1180,"","Каллиста короткосифонная","",2]
[1183,"","Перуанский ансчоус","",2]
[1211,"","Золотистая скорпена","",2]
[1233,"","Кефаль алмазная","",2]
[1249,"","Кои Кохаку","",2]
[1261,"","Перуанская макрель","",2]
[1262,"","Химера европейская","",2]
[1263,"","Кашалот-альбинос","",2]
[1275,"","Боция зебра","",2]
[1292,"","Патагонский клыкач","",2]
[1308,"","Багре негро","",2]
[1310,"","Дискус зеленый","",2]
[22,"","Поллимир Исидора","",30]
[26,"","Каранг золотой","",4]
[27,"","Убанги","",10]
[28,"","Тиляпия нильская","",47]
[29,"","Хемихромис-красавец","",70]
[30,"","Алеста","",73]
[31,"","Цитарина обыкновенная","",39]
[37,"","Тунец скумбриевидный","",34]
[39,"","Бычеглаз-хамрур","",6]
[40,"","Мурджан","",46]
[54,"","Корюшка  озерная малоротая","",44]
[56,"","Голец длинноголовый","",3]
[58,"","Хариус Камчатский","",14]
[85,"","Скорпенопсис дьявольский","",3]
[87,"","Мена пятнистая","",7]
[95,"","Мормиропс угревидный","",10]
[98,"","Карп африканский","",4]
[103,"","Семутунду","",9]
[104,"","Аристохромис Кpucmu","",12]
[106,"","Псевдотрофеус Демасони","",3]
[107,"","Офтальмотиляпия носатая","",14]
[109,"","Лаванда Мбуна","",25]
[110,"","Тиляпия красногрудая","",28]
[112,"","Фея перламутровая","",26]
[113,"","Сардина танганьикская","",15]
[115,"","Бычок краснозубый","",17]
[118,"","Аулонокара Бенша","",6]
[120,"","Лабеотрофеус обыкновенный","",6]
[121,"","Лабидохромис большой","",12]
[123,"","Клоун танганьикский","",9]
[132,"","Вунду","",9]
[136,"","Башир","",21]
[137,"","Ящероголов красный","",26]
[138,"","Скат тэниура лимма","",4]
[139,"","Тиляпия галилейская","",24]
[140,"","Собачка речная","",48]
[141,"","Нильский окунь","",5]
[142,"","Тигровая рыба нильская","",24]
[143,"","Сом электрический","",11]
[144,"","Шильб полосатый","",21]
[145,"","Баяд","",6]
[147,"","Луциан - Бохар","",4]
[148,"","Тунец индо-тихоокеанский","",7]
[151,"","Карась морской чернополосый","",5]
[153,"","Протоптер мраморный","",16]
[173,"","Шашень","",6]
[175,"","Лиманда желтохвостая","",5]
[182,"","Морская свинья тихоокеанская","",3]
[188,"","Рыба-еж длинношипая","",7]
[196,"","Японская макрель","",48]
[200,"","Краб бревидактилус","",4]
[204,"","Луварь","",4]
[206,"","Каллихт","",27]
[220,"","Тунец макрелевый","",3]
[221,"","Пеламида атлантическая","",26]
[222,"","Налим средиземноморский","",34]
[227,"","Тунец малый","",20]
[234,"","Пиракатинга","",4]
[236,"","Тукунаре","",6]
[237,"","Тамбаку","",5]
[240,"","Лепоринус зебровый","",4]
[309,"","Скат круглый","",6]
[310,"","Губан пятнистый","",3]
[333,"","Гетеротис","",21]
[347,"","Акула рифовая белая","",3]
[348,"","Барракуда остроперая","",3]
[352,"","Группер шоколадный","",7]
[355,"","Себарау","",78]
[359,"","Краб-вампир яванский","",15]
[361,"","Черепахоголов Стейнеджера","",3]
[364,"","Гурами шоколадный","",45]
[382,"","Акула серая короткоперая","",7]
[384,"","Сардинелла желтополосая","",50]
[396,"","Антиас обыкновенный","",23]
[402,"","Акула семижаберная","",10]
[403,"","Барракуда желтохвостая","",9]
[407,"","Сельдь - круглобрюшка","",10]
[409,"","Акула арабская","",8]
[410,"","Акула мадагаскарская острозубая","",6]
[411,"","Парапагурус","",3]
[412,"","Мобула серповидная","",7]
[417,"","Конгер лорда Хоу","",3]
[418,"","Кохола Вилу","",10]
[419,"","Конгер японский","",13]
[421,"","Ножезуб полосатый","",78]
[422,"","Конгер мысовой","",11]
[424,"","Каранкс желтоперый","",18]
[425,"","Конгер длинноперый","",8]
[427,"","Каранкс широкоротый","",11]
[428,"","Акула желтая","",8]
[431,"","Луциан кашмирский","",37]
[432,"","Махи-махи","",9]
[434,"","Рувета","",20]
[435,"","Барабулька мелкозубая","",12]
[436,"","Рыба-каторжник","",3]
[437,"","Рыба-бабочка лимонная","",8]
[438,"","Каранкс Тилле","",12]
[439,"","Кохола Нуи","",5]
[442,"","Кохола Полу","",4]
[443,"","Наутилус обыкновенный","",3]
[445,"","Тремоктопус","",5]
[447,"","Ехидна грациозная","",12]
[450,"","Кохола Сперм","",3]
[451,"","Кавалла островная","",31]
[452,"","Носорог Вламинга","",12]
[453,"","Рыба-павлин","",16]
[454,"","Камбала павлинья","",3]
[455,"","Даскиллус гавайский","",3]
[456,"","Мано мано","",4]
[457,"","Ехидна звездчатая","",13]
[459,"","Усач тигровый шестиполосый","",4]
[460,"","Ехидна полосатая","",4]
[461,"","Макрогнатус пятнистый","",7]
[462,"","Вьюн муреновидный","",33]
[464,"","Махсир оранжевоплавниковый","",34]
[466,"","Гурами Вайланта","",24]
[467,"","Лягушка суматранская","",5]
[468,"","Ехидна гвинейская","",7]
[469,"","Томан","",16]
[471,"","Махсир донгнайский","",47]
[472,"","Моллинезия парусная","",17]
[477,"","Сарган пресноводный","",26]
[478,"","Гурами гигантский","",52]
[479,"","Сом Хасселя","",36]
[480,"","Конгер серебристый","",5]
[482,"","Сом Нихофа","",46]
[484,"","Акулка Аполлона","",20]
[485,"","Угорь болотный азиатский","",29]
[488,"","Змееголов лесной","",45]
[490,"","Змееголов коричневый","",25]
[491,"","Змееголов малабарский","",20]
[493,"","Расбора двухточечная","",16]
[494,"","Махсир малайский","",19]
[495,"","Рак пурпурный","",5]
[498,"","Змееголов радужный","",13]
[501,"","Сердеронг чернопятнистый","",11]
[503,"","Группер палевый","",25]
[504,"","Группер крупнопятнистый","",21]
[506,"","Дистиходус шестиполосый","",4]
[510,"","Сом малавийский","",4]
[511,"","Группер буропятнистый","",4]
[512,"","Ореохромис Каронга","",14]
[515,"","Сиган яванский","",12]
[517,"","Летрин небесный","",6]
[518,"","Барракуда тупорылая","",9]
[519,"","Акула шелковая","",6]
[520,"","Кампанго","",3]
[523,"","Мурена - зебра","",3]
[525,"","Каранкс черный","",6]
[526,"","Сарган крокодиловый","",4]
[542,"","Цихлида - колибри","",10]
[544,"","Окунь вилохвостый","",9]
[546,"","Тигровая рыба танзанийская","",3]
[547,"","Меланохромис Чипока","",51]
[549,"","Нимбохромис полистигма","",3]
[550,"","Коелатура мозамбикская","",3]
[551,"","Аухеногланис","",7]
[552,"","Мбамба","",12]
[553,"","Цихлида гигантская","",5]
[555,"","Окунь танганьикский","",4]
[556,"","Окунь большеглазый","",16]
[557,"","Сом мраморный","",6]
[558,"","Золотой леопард","",4]
[559,"","Шпрот таганьикский","",27]
[560,"","Нодулария боеми","",5]
[561,"","Цихлида тупорылая","",77]
[577,"","Сомик - кукушка","",10]
[580,"","Буртония Фоаи","",3]
[581,"","Цихлида Ливингстона","",9]
[582,"","Мутела","",3]
[585,"","Иглобрюх-попугайчик","",5]
[586,"","Цапатеро","",11]
[592,"","Этмоптерус Шульца","",3]
[593,"","Акула флоридская","",10]
[594,"","Марлин атлантический","",5]
[595,"","Гуачанчо","",6]
[599,"","Кабуча","",14]
[600,"","Кабрилья","",21]
[601,"","Этмоптерус серый","",12]
[605,"","Грамма королевская","",3]
[615,"","Макрель испанская","",5]
[617,"","Кобия","",3]
[624,"","Звездочет крапчатый","",5]
[637,"","Скат пятнистый","",9]
[651,"","Акула карибская длиннорылая","",11]
[655,"","Этелис королевский","",8]
[656,"","Макрель-Кавалла","",16]
[658,"","Макрель бразильская","",6]
[659,"","Снэппер нитеперый","",34]
[661,"","Черна бурополосая","",13]
[664,"","Трахинот большой","",6]
[666,"","Морской черт или удильщик европейский","",4]
[667,"","Змеиная макрель","",5]
[668,"","Лещ морской обыкновенный","",74]
[671,"","Судак канадский","",3]
[672,"","Терпуг одноперый","",36]
[673,"","Севрюга","",7]
[674,"","Ершоватка","",23]
[678,"","Рак речной","",4]
[680,"","Косатка уссурийская","",10]
[682,"","Лягушка китайская съедобная","",6]
[683,"","Сельдь американская","",12]
[684,"","Дельфин атлантический белобокий","",6]
[686,"","Желтощек","",8]
[687,"","Сом","",59]
[688,"","Клювач северный","",26]
[689,"","Окунь алеутский","",33]
[692,"","Ротан","",22]
[693,"","Каранкс большой","",7]
[694,"","Марлин полосатый","",10]
[695,"","Терпуг бурый","",75]
[696,"","Окунь северный морской","",21]
[697,"","Терпуг зайцеголовый","",9]
[698,"","Линь","",44]
[699,"","Маколор черный","",58]
[701,"","Трахира Хоплиас, Малабарский хоплиас","",4]
[705,"","Поллак","",5]
[707,"","Бычок-кругляк","",46]
[708,"","Кета","",25]
[709,"","Мальма","",19]
[710,"","Чехонь","",34]
[714,"","Хариус сибирский","",48]
[716,"","Белуга","",12]
[717,"","Гольян Лаговского","",52]
[718,"","Гольян озерный","",52]
[720,"","Форель ручьевая","",21]
[721,"","Бестер","",6]
[722,"","Палия","",5]
[723,"","Губан колючий","",32]
[724,"","Карась морской","",3]
[725,"","Форель радужная","",77]
[726,"","Дельфин тусклый","",6]
[727,"","Дельфин Коммерсона","",13]
[729,"","Краснопер мелкочешуйчатый","",34]
[731,"","Синец","",12]
[732,"","Берш","",46]
[733,"","Судак","",48]
[734,"","Мальма лабынкырская","",12]
[735,"","Краснопёр монгольский","",3]
[736,"","Топь","",10]
[740,"","Дельфин китовидный южный","",17]
[743,"","Дельфин китайский","",3]
[744,"","Пиранья обыкновенная","",75]
[745,"","Парусник","",12]
[746,"","Хариус ленский","",7]
[747,"","Нерка","",34]
[748,"","Валек","",8]
[750,"","Галаксия пятнистая","",8]
[752,"","Рыба-лиса","",9]
[755,"","Скат полярный","",18]
[756,"","Скат короткохвостый","",6]
[757,"","Густера","",28]
[759,"","Хариус восточносибирский","",3]
[760,"","Трионикс китайский","",21]
[764,"","Керчак-яок","",25]
[766,"","Треска восточная","",35]
[767,"","Лунник","",5]
[768,"","Минтай","",17]
[769,"","Скат Монтегю","",10]
[770,"","Амур черный","",5]
[771,"","Вьюн","",53]
[772,"","Бычок-цуцик","",9]
[774,"","Рипус","",12]
[777,"","Акула звездчатошипая","",10]
[780,"","Щука амурская","",8]
[783,"","Губан радужный","",12]
[784,"","Тасманский рак","",3]
[785,"","Микижа чилийская","",17]
[786,"","Скат Йенсена","",3]
[787,"","Горбуша южноамериканская","",12]
[788,"","Сиг амурский","",13]
[789,"","Навага тихоокеанская","",54]
[793,"","Краппи белый","",6]
[797,"","Осетр атлантический","",14]
[798,"","Ауха","",36]
[801,"","Группер картофельный","",35]
[802,"","Группер томатный","",15]
[803,"","Луциан темно-бурый","",8]
[804,"","Марлин голубой","",7]
[805,"","Окунь пятнистый","",67]
[806,"","Мригал","",14]
[807,"","Карп индийский","",10]
[808,"","Тунец голубой","",16]
[811,"","Архитеутис","",3]
[812,"","Тригла желтая","",11]
[813,"","Скат колючий","",28]
[816,"","Угорь речной японский","",5]
[817,"","Краб пресноводный","",9]
[818,"","Бутылконос северный","",10]
[820,"","Кефаль-губач","",6]
[821,"","Лосось атлантический","",18]
[822,"","Осетр русский","",5]
[823,"","Кашорро краснохвостый","",21]
[824,"","Тунец желтопёрый","",12]
[825,"","Тартаруга","",5]
[826,"","Угорь рисовый","",4]
[830,"","Кижуч","",16]
[831,"","Шип","",9]
[833,"","Краппи черный","",27]
[834,"","Пелядь","",35]
[836,"","Сом амурский","",40]
[837,"","Окунь песчаный","",37]
[839,"","Окунь прибрежный","",3]
[840,"","Окунь большеротый","",8]
[841,"","Окунь ушастый","",9]
[842,"","Микижа","",44]
[843,"","Нейва","",14]
[846,"","Лаврак белый","",5]
[850,"","Пыжьян","",66]
[851,"","Широколобка красная","",65]
[852,"","Окунь  каменный","",31]
[853,"","Бикуда","",51]
[854,"","Рыбец","",18]
[855,"","Кайман гладколобый","",78]
[856,"","Ерш","",57]
[860,"","Кижуч южноамериканский","",13]
[861,"","Подкаменщик","",20]
[862,"","Карась якутский","",56]
[863,"","Байкальский осетр","",3]
[864,"","Елец сибирский","",24]
[866,"","Сомик американский","",4]
[867,"","Окунь красноглазый","",38]
[868,"","Хариус байкальский Белый","",3]
[869,"","Хариус байкальский черный","",7]
[870,"","Широколобка темная","",4]
[871,"","Омуль маломорский","",6]
[873,"","Скумбрия атлантическая","",47]
[874,"","Сельдь черноморская","",11]
[875,"","Акула-молот обыкновенная","",12]
[876,"","Лещ морской белый","",80]
[877,"","Рыба-луна","",21]
[879,"","Белокровка большеглазая","",8]
[880,"","Солнечник синежаберный","",42]
[881,"","Кефаль-лобан","",31]
[882,"","Налим","",46]
[883,"","Дорадо","",42]
[884,"","Акула-лисица","",9]
[885,"","Кальмар антарктический","",14]
[887,"","Кальмар длинный","",49]
[888,"","Манта","",15]
[889,"","Новозеландская мерлуза","",8]
[890,"","Белокровка Ричардсона","",6]
[891,"","Белокровка  щуковидная","",29]
[892,"","Камбала морская","",76]
[894,"","Палтус атлантический","",10]
[895,"","Мольва","",28]
[896,"","Ангел морской антарктический","",26]
[897,"","Бородатка Скуры","",19]
[900,"","Голец - кристивомер","",43]
[904,"","Макрель голубая","",35]
[905,"","Акула-молот бронзовая","",24]
[906,"","Лещ морской кинжальный","",54]
[907,"","Стерлядь","",40]
[908,"","Бычок-кнут","",3]
[909,"","Медуза антарктическая","",66]
[911,"","Нототения длинноперая","",39]
[912,"","Паук морской антарктический","",3]
[913,"","Морская звезда южная","",43]
[914,"","Покрышка старая","",48]
[916,"","Луциан чернохвостый","",21]
[918,"","Тунец длинноперый","",27]
[920,"","Павлиний окунь-бабочка","",44]
[922,"","Скат акулий","",3]
[925,"","Зубатка пятнистая","",31]
[926,"","Треска атлантическая","",14]
[928,"","Путассу северная","",11]
[929,"","Клоун мавританский","",27]
[931,"","Губан носатый","",5]
[933,"","Пикша","",38]
[934,"","Щука глубинная","",8]
[936,"","Стерлядь сибирская","",10]
[937,"","Голец Таранца","",14]
[939,"","Дельфин обыкновенный","",15]
[940,"","Подкаменщик сибирский","",33]
[941,"","Лещ амурский черный","",62]
[942,"","Горбуша","",72]
[944,"","Осетр якутский","",4]
[946,"","Хариус европейский","",27]
[947,"","Моллюск","",23]
[948,"","Голец черского","",42]
[950,"","Сом Суруби","",40]
[951,"","Палия южноамериканская","",52]
[955,"","Спинорог Пикассо","",12]
[956,"","Аротрон белоточечный","",5]
[957,"","Тунец южный","",7]
[958,"","Спинорог точечный","",25]
[959,"","Пагр красный","",18]
[960,"","Пескарь","",33]
[962,"","Рыба-наполеон","",28]
[963,"","Спинорог крупнопятнистый","",12]
[966,"","Сима южноамериканская","",24]
[967,"","Щучка Хьюжета","",10]
[969,"","Кумжа южноамериканская","",48]
[970,"","Лягушка озерная","",3]
[971,"","Акула серо-бурая","",20]
[973,"","Голец арктический","",78]
[975,"","Нельма","",9]
[976,"","Окунь морской золотистый","",76]
[977,"","Окунь морской норвежский","",41]
[978,"","Катран","",57]
[979,"","Акула мелкозубая","",12]
[980,"","Пиранья ромбовидная","",68]
[981,"","Акула - собака","",24]
[982,"","Сайда","",17]
[983,"","Сайка","",9]
[984,"","Зубарик обыкновенный","",25]
[985,"","Окунь - клювач","",8]
[987,"","Ангел лирохвостый","",3]
[988,"","Клюворыл","",70]
[989,"","Муксун","",27]
[990,"","Таймень","",32]
[992,"","Ваху","",6]
[993,"","Спинорог расписной","",4]
[994,"","Спинорог заплаточный","",7]
[1013,"","Луциан королевский","",8]
[1014,"","Барабулька","",3]
[1021,"","Мидия","",3]
[1042,"","Луциан синеполосый","",6]
[1043,"","Тракакса","",5]
[1044,"","Сельдь каспийская","",7]
[1051,"","Колюшка трехиглая","",6]
[1053,"","Мойва","",52]
[1055,"","Угай крупночешуйчатый","",4]
[1056,"","Кит серый","",13]
[1057,"","Сайра атлантическая","",3]
[1058,"","Черепаха каспийская","",3]
[1063,"","Конь пестрый","",30]
[1064,"","Шемая","",3]
[1066,"","Чукучан","",7]
[1078,"","Колюшка девятииглая","",3]
[1085,"","Конус Географический","",3]
[1089,"","Лещ черный южный","",3]
[1094,"","Окунь золотой","",25]
[1104,"","Акула мальгашская","",3]
[1107,"","Камбала кесслера","",3]
[1108,"","Долгопер средиземноморский","",12]
[1116,"","Кузовок-кубик","",21]
[1132,"","Угольная рыба","",10]
[1142,"","Саратога","",3]
[1145,"","Акула китовая","",16]
[1147,"","Гребешок лунный","",18]
[1150,"","Брызгун крупнопятнистый","",28]
[1157,"","Австралийский анчоус","",12]
[1161,"","Пинагор","",4]
[1162,"","Губан гребенчатый","",7]
[1164,"","Акула полярная","",8]
[1167,"","Акула японская бычья","",3]
[1168,"","Скалозуб бурый","",7]
[1169,"","Камбала звездчатая","",6]
[1170,"","Сима","",55]
[1176,"","Апистограмма факельная","",4]
[1178,"","Мактромерис изменчивый","",4]
[1179,"","Песчанка тихоокеанская","",3]
[1182,"","Акула азиатская кунья","",20]
[1185,"","Устрица","",3]
[1186,"","Аррип Большой","",8]
[1188,"","Кит карликовый","",11]
[1190,"","Лемонема","",18]
[1191,"","Тунец полосатый","",3]
[1192,"","Чилийская пеламида","",6]
[1193,"","Омуль байкальский","",11]
[1194,"","Омуль","",20]
[1195,"","Перуанская ставрида","",10]
[1196,"","Желтохвост","",14]
[1197,"","Острорылый крокодил","",25]
[1202,"","Камбала полосатая","",27]
[1203,"","Пескарь китайский","",12]
[1206,"","Инанга","",5]
[1207,"","Камбала зеленая","",7]
[1214,"","Калинка","",77]
[1216,"","Акула Сейла","",4]
[1218,"","Тасманский пескарь","",3]
[1219,"","Конголли","",5]
[1220,"","Перуанская сериолелла","",11]
[1222,"","Ленок острорылый","",13]
[1223,"","Акула длиннокрылая","",15]
[1224,"","Акула тигровая","",64]
[1225,"","Акула белоперая","",6]
[1226,"","Акула шестижаберная","",11]
[1227,"","Каранкс синеплавниковый","",4]
[1232,"","Мусум","",12]
[1234,"","Гребешок приморский","",5]
[1236,"","Анчоус японский","",22]
[1237,"","Осетр персидский","",62]
[1238,"","Группер леопардовый","",26]
[1240,"","Акула суповая","",33]
[1241,"","Пятнистый воббегонг","",4]
[1242,"","Сериола большая","",5]
[1243,"","Акула пепельная","",11]
[1246,"","Чир","",4]
[1247,"","Рыба-меч","",32]
[1250,"","Акула серо-голубая","",12]
[1252,"","Группер павлиний","",20]
[1254,"","Белоглазка","",29]
[1256,"","Ремнезуб Грея","",50]
[1265,"","Пагелл красный","",20]
[1266,"","Хирург желтоплавничный","",9]
[1267,"","Шпрот европейский","",8]
[1268,"","Палтус синекорый","",6]
[1269,"","Терпуг Стеллера","",9]
[1270,"","Тарань","",3]
[1272,"","Усач обыкновенный","",16]
[1279,"","Мурена ячеистая","",5]
[1280,"","Пеленгас","",8]
[1282,"","Подуст","",12]
[1283,"","Финта","",13]
[1285,"","Осетр сибирский","",4]
[1286,"","Группер Квинслендский","",3]
[1287,"","Пузанок","",9]
[1288,"","Попока","",14]
[1289,"","Корюшка зубатая азиатская","",5]
[1290,"","Марлин черный","",5]
[1294,"","Лиманда сахалинская","",11]
[1295,"","Гринда короткоплавниковая","",4]
[1301,"","Пиранья вымпельная","",3]
[1302,"","Аравана серебристая","",14]
[1304,"","Морской орел пятнистый","",3]
[1305,"","Мако длинноплавниковый","",4]
[1306,"","Кайман крокодиловый","",4]
[1312,"","Лещ восточно-сибирский","",4]
[1313,"","Рогатка","",6]
[1314,"","Палтус белокорый","",5]
[1315,"","Лоцман","",20]
[1320,"","Нанностом Бекфорда","",53]
[1321,"","Мерланг","",53]
[1324,"","Сом-плоскоголовик","",9]
[1325,"","Золотистая сериола","",7]
[1326,"","Гребешок антарктический","",103]
[1327,"","Криль подледный","",113]
[1328,"","Белокровка глубинная","",86]
[1329,"","Белокровка парусная","",137]
[1330,"","Нототения-звездочет","",101]
[1331,"","Белокровка патагонская","",112]
[1332,"","Волосозуб","",95]
[1333,"","Голавль","",151]
[1334,"","Жерех","",90]
[1335,"","Елец","",89]
[1336,"","Язь","",134]
[1337,"","Голец Леванидова","",159]
[1338,"","Сапог рваный","",135]
[1339,"","Кунджа","",92]
[1340,"","Чавыча","",87]
[1341,"","Вобла","",107]
[1342,"","Сфирена мелкочешуйная","",84]
[1343,"","Гонатус","",83]
[1344,"","Акула белая","",151]
[1345,"","Акула-молот гигантская","",82]
[1346,"","Сазан","",106]
[1347,"","Толстолобик белый","",85]
[1348,"","Корюшка","",85]
[1349,"","Угорь короткоребристый","",91]
[1350,"","Луциан зеленый","",116]
[1351,"","Зеленушка","",90]
[1352,"","Скат гитарный","",108]
[1353,"","Лаврак полосатый","",87]
[1354,"","Крокодил гребнистый","",137]
[1355,"","Сейвал или кит ивасевый","",106]
[1356,"","Берикс австралийский","",90]
[1357,"","Омуль северобайкальский","",105]
[1358,"","Полосатик карликовый","",157]
[1359,"","Акула голубая","",142]
[1360,"","Гринда обыкновенная","",132]
[1361,"","Форель озерная","",87]
[1362,"","Бонито","",95]
[1363,"","Акула гренландская","",143]
[1364,"","Лосось южноамериканский","",122]
[1365,"","Омуль посольский","",96]
[1366,"","Окунь малоротый","",92]
[1367,"","Чавыча южноамериканская","",93]
[1368,"","Желтокрылка","",81]
[1369,"","Морской еж","",114]
[1370,"","Вьюн серополосый","",107]
[1371,"","Змееголов черный","",145]
[1372,"","Виттина короманделиана","",108]
[1373,"","Бабочка малавийская","",103]
[1374,"","Кальвус","",111]
[1375,"","Окунь гладкий","",102]
[1376,"","Сом лесной","",126]
[1377,"","Креветка - хоббит","",112]
[1378,"","Щучка азиатская","",128]
[1379,"","Апсил зубатый","",87]
[1380,"","Нандус борнейский","",84]
[1381,"","Кит синий северный","",145]
[1382,"","Ламна или Акула сельдевая атлантическая","",127]
[1383,"","Морская звезда заметная","",111]
[1384,"","Окунь малый","",100]
[1385,"","Пагр австралийский","",84]
[1386,"","Селар","",143]
[1387,"","Флагохвост гавайский","",95]
[1388,"","Карп голый","",189]
[1389,"","Сиг","",224]
[1390,"","Кит горбатый","",201]
[1391,"","Змееголов полосатый","",163]
[1392,"","Перка","",190]
[1393,"","Усач жесткогубый","",227]
[1394,"","Белуха","",186]
[1395,"","Усач борнейский","",169]
[1396,"","Полурыл лесной","",240]
[1397,"","Усач Ваандерса","",220]
[1398,"","Усач Бэнкси","",235]
[1399,"","Кит горбатый-альбинос","",186]
[1400,"","Тиляпия Зилля","",178]
[1401,"","Бычок - трахидерм","",220]
[1402,"","Белокровка  угольная","",208]
[1403,"","Скалярия Леопольда","",182]
[1404,"","Плосконос антарктический","",165]
[1405,"","Лаврак","",242]
[1406,"","Акула гигантская","",199]
[1407,"","Амур белый","",162]
[1408,"","Форель севанская","",169]
[1409,"","Барракуда большая","",237]
[1410,"","Ленок","",211]
[1411,"","Узконос Шарко","",308]
[1412,"","Узконос южногеоргианский","",284]
[1413,"","Карп зеркальный","",243]
[1414,"","Лещ","",259]
[1415,"","Макрогнатус зебровый","",256]
[1416,"","Кераи","",285]
[1417,"","Омуль селенгинский","",312]
[1418,"","Кит японский","",320]
[1419,"","Расбора обыкновенная","",322]
[1420,"","Полосатик южный","",265]
[1421,"","Косатка","",264]
[1422,"","Бутылконос плоскоголовый","",368]
[1423,"","Робало","",327]
[1424,"","Щука обыкновенная","",389]
[1425,"","Угорь","",378]
[1426,"","Махсир обыкновенный","",328]
[1427,"","Красноперка","",342]
[1428,"","Усач краснохвостый","",391]
[1429,"","Морской еж антарктический","",334]
[1430,"","Белокровка Вильсона","",474]
[1431,"","Змееголов карликовый","",408]
[1432,"","Окунь","",457]
[1433,"","Белокровка зеленая","",409]
[1434,"","Кашалот","",510]
[1435,"","Карась золотой","",564]
[1436,"","Акула антарктическая полярная","",532]
[1437,"","Карп чешуйчатый","",506]
[1438,"","Карась серебряный","",514]
[1439,"","Анабас","",617]
[1440,"","Голомянка","",624]
[1441,"","Полосатик малый","",634]
[1442,"","Белокровка носорогая","",739]
[1443,"","Ледяная рыба","",842]
[1444,"","Белокровка крокодиловая","",816]
[1445,"","Клыкач антарктический","",820]
[1446,"","Полосатик Брайда","",914]
[1447,"","Плотва","",977]
[1448,"","Сом лягушковый","",1205]
[1449,"","Змееголов пятнистый","",1306]
[1450,"","Подлещик","",2134]
[1451,"","Змееголов глазчатый","",2318]
[1452,"","Южная путассу","",2475]
[1453,"","Пингвин королевский","",3297]
[1454,"","Пингвин императорский","",3635]
[1455,"","Пингвин папуанский","",3947]
[1456,"","Бородатка Скотта","",4356]
[1457,"","Финвал","",5222]
[1458,"","Трематом чешуйчатый","",6462]
[1459,"","Бородатка Барсукова","",6539]
[1460,"","Пингвин антарктический","",6922]
[1461,"","Серебрянка антарктическая","",7368]
[1462,"","Бородатка бирюзовая","",9258]
[1463,"","Бородатка Орианы","",9605]
[1464,"","Широколобик большой","",16096]

{"sheet":"Выгрузка","index":2,"n_rows":1565,"n_cols":5,"rows_kept":1565,"cut":false,"hidden":true,"merged":[]}
["Серверы"]
["Вход или регистрация"]
["Войти Регистрация Забыли пароль? Не пришел пароль?"]
["Загрузить"]
["Загрузить игру"]
["Обои на рабочий стол"]
["Новости"]
["Турниры"]
["Регулярные турниры"]
["Big Game Fishing"]
["Рейтинги"]
["Рейтинги игроков"]
["Таблица рекордов"]
["Командный турнирный рейтинг"]
["Командный дуэльный рейтинг"]
["Справочник"]
["Статистика сервера"]
["Цены на рыбу"]
["Список рыбы"]
["Список предметов"]
["Список водоемов"]
["Вопросы и ответы"]
["Мобильная версия"]
["Загрузить игру МРР"]
["Помощь и советы МРР"]
["Таблица рекордов МРР"]
["Цены на рыбу МРР"]
["Карта сервера МРР"]
["Расписание турниров МРР"]
["Рейтинги игроков МРР"]
["Рейтинг команд МРР"]
["Разработка"]
["Сообщество"]
["Форум"]
["Социальные сети"]
["Главная »"]
["Цены на рыбу"]
[]
["Цены на рыбу"]
[]
["Стоимость рыбы меняется каждые 5 реальных часов. Чем больше продают данную рыбу, тем меньше она стоит."]
[]
["Ниже представлен спрос на рыбу в порядке убывания."]
["Последнее изменение цен было в 17:57 МСК."]
["Место:","Рыба:",null,"Прогресс:","Продано (шт):"]
[1,null,"Форель Бива",null,0]
[2,null,"Полосатик Омуры",null,0]
[3,null,"Кит северный гладкий",null,2]
[4,null,"Сельдь атлантическая",null,0]
[5,null,"Вьюн амурский",null,0]
[6,null,"Каранкс бронзовый",null,0]
[7,null,"Морская свинья обыкновенная",null,0]
[8,null,"Кит южный гладкий",null,0]
[9,null,"Каранкс Гебера",null,0]
[10,null,"Кинжалозуб",null,0]
[11,null,"Бэрардиус Бэрда",null,0]
[12,null,"Акула мозамбикская бычья",null,0]
[13,null,"Морская свинья бесперая",null,0]
[14,null,"Рыба луна короткая",null,0]
[15,null,"Косаткодельфин",null,0]
[16,null,"Пузанок северокаспийский",null,0]
[17,null,"Сельдь тихоокеанская",null,0]
[18,null,"Сельдь волжская",null,0]
[19,null,"Менхэден бразильский",null,0]
[20,null,"Сельдь чёшско-печорская",null,0]
[21,null,"Эолидия",null,0]
[22,null,"Поллимир Исидора",null,30]
[23,null,"Осетр корейский",null,0]
[24,null,"Акула рифовая",null,1]
[25,null,"Группер таувина",null,2]
[26,null,"Каранг золотой",null,4]
[27,null,"Убанги",null,10]
[28,null,"Тиляпия нильская",null,47]
[29,null,"Хемихромис-красавец",null,70]
[30,null,"Алеста",null,73]
[31,null,"Цитарина обыкновенная",null,39]
[32,null,"Кланкулюс",null,0]
[33,null,"Граммистес шестиполосый",null,0]
[34,null,"Чешуйчатник",null,0]
[35,null,"Семапрохилодус",null,0]
[36,null,"Рыба-тряпка",null,0]
[37,null,"Тунец скумбриевидный",null,34]
[38,null,"Тилозур красноморский",null,0]
[39,null,"Бычеглаз-хамрур",null,6]
[40,null,"Мурджан",null,46]
[41,null,"Конус письменный",null,0]
[42,null,"Рыба-луна овальная",null,0]
[43,null,"Акула сигарная",null,0]
[44,null,"Акула скульптурная",null,0]
[45,null,"Акула - свинья",null,0]
[46,null,"Акула острозубая",null,0]
[47,null,"Акула светлохвостая",null,0]
[48,null,"Лихия",null,0]
[49,null,"Маллисквама",null,0]
[50,null,"Камбала двухцветная",null,0]
[51,null,"Акула шершавая",null,0]
[52,null,"Калкан черноморский",null,0]
[53,null,"Кижуч озерный",null,0]
[54,null,"Корюшка озерная малоротая",null,44]
[55,null,"Голец узонский",null,0]
[56,null,"Голец длинноголовый",null,3]
[57,null,"Голец носатый",null,2]
[58,null,"Хариус Камчатский",null,14]
[59,null,"Акула губастая",null,0]
[60,null,"Форель остроголовая",null,0]
[61,null,"Нерка карликовая",null,1]
[62,null,"Осетр тихоокеанский",null,0]
[63,null,"Минога сибирская",null,0]
[64,null,"Группер Малабарский",null,0]
[65,null,"Афалина",null,0]
[66,null,"Кит синий альбинос",null,0]
[67,null,"Токсабрамис",null,2]
[68,null,"Осьминог Думбо",null,0]
[69,null,"Косатка малая",null,0]
[70,null,"Манта рифовая",null,0]
[71,null,"Антимора клюворылая",null,0]
[72,null,"Ремнезуб командорский",null,0]
[73,null,"Осетр адриатический",null,0]
[74,null,"Плиотрема",null,0]
[75,null,"Сарпа",null,0]
[76,null,"Пилонос японский",null,0]
[77,null,"Палтус американский",null,0]
[78,null,"Австралийский пилонос",null,0]
[79,null,"Семга Камчатская",null,1]
[80,null,"Змея рисовая",null,0]
[81,null,"Центрина Австралийская",null,0]
[82,null,"Форель Дональдсона",null,0]
[83,null,"Хвостокол кольчатый",null,0]
[84,null,"Свистулька голубопятнистая",null,0]
[85,null,"Скорпенопсис дьявольский",null,3]
[86,null,"Неалот",null,1]
[87,null,"Мена пятнистая",null,7]
[88,null,"Мурена перечная",null,1]
[89,null,"Кит Бискайский",null,0]
[90,null,"Сферомия пятнистая",null,0]
[91,null,"Китовая акула - альбинос",null,0]
[92,null,null,null,0]
[93,null,"Тигровая рыба обыкновенная",null,0]
[94,null,"Мелания песчаная",null,0]
[95,null,"Мормиропс угревидный",null,10]
[96,null,"Лягушка нильская",null,0]
[97,null,"Сом жирафовый",null,0]
[98,null,"Карп африканский",null,4]
[99,null,"Бородавчатка красноморская",null,1]
[100,null,"Крылатка-зебра",null,0]
[101,null,"Акула свиноглазая",null,0]
[102,null,"Полиптер",null,1]
[103,null,"Семутунду",null,9]
[104,null,"Аристохромис Кpucmu",null,12]
[105,null,"Принцесса Бурунди",null,0]
[106,null,"Псевдотрофеус Демасони",null,3]
[107,null,"Офтальмотиляпия носатая",null,14]
[108,null,"Лабидохромис Хонги",null,2]
[109,null,"Лаванда Мбуна",null,25]
[110,null,"Тиляпия красногрудая",null,28]
[111,null,"Тиляпия мозамбикская",null,2]
[112,null,"Фея перламутровая",null,26]
[113,null,"Сардина танганьикская",null,15]
[114,null,"Летрин длиннорылый",null,1]
[115,null,"Бычок краснозубый",null,17]
[116,null,"Кит Акишима",null,0]
[117,null,"Скафокогия",null,0]
[118,null,"Аулонокара Бенша",null,6]
[119,null,"Аулонокара Ньяса",null,0]
[120,null,"Лабеотрофеус обыкновенный",null,6]
[121,null,"Лабидохромис большой",null,12]
[122,null,"Королева Танганьики",null,0]
[123,null,"Клоун танганьикский",null,9]
[124,null,"Королева Ньяса",null,0]
[125,null,"Фахака",null,0]
[126,null,"Конус березовый",null,0]
[127,null,"Конус дворцовый",null,0]
[128,null,"Крокодил нильский",null,0]
[129,null,"Луциан горбатый",null,1]
[130,null,"Плоскоголов пятнистый",null,2]
[131,null,"Конус текстильный",null,0]
[132,null,"Вунду",null,9]
[133,null,"Конус полосатый",null,0]
[134,null,"Конус Мильн-Эдвардса",null,0]
[135,null,"Конус мраморный",null,0]
[136,null,"Башир",null,21]
[137,null,"Ящероголов красный",null,26]
[138,null,"Скат тэниура лимма",null,4]
[139,null,"Тиляпия галилейская",null,24]
[140,null,"Собачка речная",null,48]
[141,null,"Нильский окунь",null,5]
[142,null,"Тигровая рыба нильская",null,24]
[143,null,"Сом электрический",null,11]
[144,null,"Шильб полосатый",null,21]
[145,null,"Баяд",null,6]
[146,null,"Акула - квагга",null,0]
[147,null,"Луциан - Бохар",null,4]
[148,null,"Тунец индо-тихоокеанский",null,7]
[149,null,"Карась-барабан",null,0]
[150,null,"Шипощёк длинноперый",null,0]
[151,null,"Карась морской чернополосый",null,5]
[152,null,"Группер красноротый",null,1]
[153,null,"Протоптер мраморный",null,16]
[154,null,"Мурена гигантская",null,0]
[155,null,"Скат-орляк пятнистый",null,0]
[156,null,"Скат-торпедо электрический",null,1]
[157,null,"Синодонтис вуалевый",null,0]
[158,null,"Велифер",null,0]
[159,null,"Аба-аба",null,0]
[160,null,"Горгасия красноморская",null,0]
[161,null,"Линофрина индийская",null,0]
[162,null,"Рыба-кабан трехполосая",null,0]
[163,null,"Удильщик Джонсона",null,0]
[164,null,"Макрурус вооруженный",null,0]
[165,null,"Группер белоокаймленный",null,0]
[166,null,"Оксимонокант длиннорылый",null,0]
[167,null,"Зубатка синяя",null,0]
[168,null,"Креветка северная",null,0]
[169,null,"Зубатка полосатая",null,1]
[170,null,"Волютопсиус каштановый",null,0]
[171,null,"Необерингиус Фрилея",null,0]
[172,null,"Перечный слизняк",null,1]
[173,null,"Шашень",null,6]
[174,null,"Краб вельветовый",null,0]
[175,null,"Лиманда желтохвостая",null,5]
[176,null,"Ремнезуб атлантический",null,0]
[177,null,"Ящерица каймановая",null,1]
[178,null,"Ампуллярия",null,0]
[179,null,"Цихлазома мезонаута",null,2]
[180,null,"Хараки",null,1]
[181,null,"Хемиодопсис",null,0]
[182,null,"Морская свинья тихоокеанская",null,3]
[183,null,"Серцевидка",null,0]
[184,null,"Морская свинья Далля",null,0]
[185,null,"Акула плоскоголовая",null,0]
[186,null,"Запрора",null,1]
[187,null,"Единорог расписной",null,0]
[188,null,"Рыба-еж длинношипая",null,7]
[189,null,"Рыбальдо",null,0]
[190,null,"Перуанская сардина",null,1]
[191,null,"Морская свинья аргентинская",null,0]
[192,null,"Нереис",null,0]
[193,null,"Буффало большеротый",null,0]
[194,null,"Буффало малоротый",null,1]
[195,null,"Венера воздушная",null,0]
[196,null,"Японская макрель",null,48]
[197,null,"Рапана Венозная",null,0]
[198,null,"Спинорог золотоплавниковый",null,0]
[199,null,"Глаукус",null,0]
[200,null,"Краб бревидактилус",null,4]
[201,null,"Ликодонт яванский",null,0]
[202,null,"Полосатик Идена",null,2]
[203,null,"Бисса",null,0]
[204,null,"Луварь",null,4]
[205,null,"Краб сине-красный",null,1]
[206,null,"Каллихт",null,27]
[207,null,"Кокани",null,1]
[208,null,"Уару",null,0]
[209,null,"Акарихтис Хекеля",null,0]
[210,null,"Анаконда",null,0]
[211,null,"Акара голубовато-пятнистая",null,0]
[212,null,"Кои Ямабуки Огон",null,1]
[213,null,"Кои Платинум Огон",null,0]
[214,null,"Гидромедуза бразильская",null,0]
[215,null,"Джакунда",null,0]
[216,null,"Биара",null,0]
[217,null,"Аравана черная",null,1]
[218,null,"Астронотус глаздчатый",null,0]
[219,null,"Скат мозаичный",null,0]
[220,null,"Тунец макрелевый",null,3]
[221,null,"Пеламида атлантическая",null,26]
[222,null,"Налим средиземноморский",null,34]
[223,null,"Осьминог обыкновенный",null,0]
[224,null,"Чоп",null,0]
[225,null,"Краб Мраморный",null,0]
[226,null,"Итальянский усач",null,0]
[227,null,"Тунец малый",null,20]
[228,null,"Усач Валецкого",null,0]
[229,null,"Дианема полосатохвостая",null,0]
[230,null,"Пиранья стройная",null,0]
[231,null,"Пирапитинга",null,0]
[232,null,"Пиранья краснобрюхая",null,1]
[233,null,"Пираиба",null,1]
[234,null,"Пиракатинга",null,4]
[235,null,"Тегу",null,0]
[236,null,"Тукунаре",null,6]
[237,null,"Тамбаку",null,5]
[238,null,"Пираруку",null,1]
[239,null,"Таедо",null,0]
[240,null,"Лепоринус зебровый",null,4]
[241,null,"Лепоринус Фредерика",null,0]
[242,null,"Колоссома",null,0]
[243,null,"Дискус Хеккеля",null,0]
[244,null,"Иния",null,1]
[245,null,"Павлиний окунь ленточный",null,0]
[246,null,"Пака",null,2]
[247,null,"Милоссома килебрюхая",null,0]
[248,null,"Метиннис пятнистый",null,0]
[249,null,"Милеус ленточный",null,0]
[250,null,"Форель апачей",null,0]
[251,null,"Губка-лира",null,0]
[252,null,"Клюворыл Шепарда",null,0]
[253,null,"Ремнезуб перуанский",null,0]
[254,null,"Тауматихт Акселя",null,0]
[255,null,"Пирарара",null,0]
[256,null,"Скат акулохвостый",null,0]
[257,null,"Носорог пятнистый",null,0]
[258,null,"Матамата",null,0]
[259,null,"Лазианциструс",null,0]
[260,null,"Утконос",null,1]
[261,null,"Скат гладкий",null,0]
[262,null,"Саблезуб",null,0]
[263,null,"Макропинна",null,0]
[264,null,"Рыба-капля",null,0]
[265,null,"Пиранья крапчатая",null,0]
[266,null,"Акула Мицукури",null,0]
[267,null,"Черный нож",null,0]
[268,null,"Кракен",null,1]
[269,null,"Алепизавр",null,0]
[270,null,"Пайара",null,0]
[271,null,"Катран вануатский",null,0]
[272,null,"Багре хигучи",null,0]
[273,null,"Рыба-ремень, сельдяной король",null,0]
[274,null,"Акула черная (Далатия)",null,0]
[275,null,"Краб-йети",null,0]
[276,null,"Мегалодон",null,0]
[277,null,"Голец дальнеозерский",null,0]
[278,null,"Хирург-Ахиллес",null,0]
[279,null,"Акула эполетовая",null,0]
[280,null,"Мешкорот",null,0]
[281,null,"Галаксия чилийская",null,0]
[282,null,"Чешуеед, Плагиотрем чешуеедный",null,0]
[283,null,"Рыба-сабля",null,0]
[284,null,"Акула плащеносная",null,0]
[285,null,"Жемчужная рыба",null,0]
[286,null,"Акула светящаяся",null,0]
[287,null,"Акулеола черная",null,0]
[288,null,"Акула-домовой",null,0]
[289,null,"Кайман широкомордый",null,0]
[290,null,"Кои Асаги",null,0]
[291,null,"Бельдюга Андрияшева",null,0]
[292,null,"Омуль баргузинский",null,1]
[293,null,null,null,0]
[294,null,"Костерь",null,0]
[295,null,"Краб снежный",null,1]
[296,null,null,null,0]
[297,null,null,null,0]
[298,null,null,null,0]
[299,null,null,null,0]
[300,null,null,null,0]
[301,null,null,null,0]
[302,null,"Панцирник мисиссипский",null,0]
[303,null,"Рак красный флоридский",null,0]
[304,null,"Панцирник длиннорылый",null,0]
[305,null,"Евдошка американская",null,0]
[306,null,"Осетр тупорылый",null,0]
[307,null,"Омар норвежский",null,0]
[308,null,"Омар европейский",null,0]
[309,null,"Скат круглый",null,6]
[310,null,"Губан пятнистый",null,3]
[311,null,"Осьминог семирукий",null,0]
[312,null,null,null,0]
[313,null,"Павлиний окунь королевский",null,0]
[314,null,"Оринокский крокодил",null,0]
[315,null,"Акула коромандельская",null,0]
[316,null,"Нарвал",null,0]
[317,null,"Гигантская тридакна",null,0]
[318,null,"Голец чукотский",null,0]
[319,null,"Морская свинья очковая",null,0]
[320,null,"Амия",null,0]
[321,null,"Осетр белый",null,0]
[322,null,"Хендфиш",null,0]
[323,null,"Акула исландская",null,0]
[324,null,"Голец белый",null,2]
[325,null,"Кои Утсури",null,0]
[326,null,null,null,0]
[327,null,"Акула копьезубая",null,0]
[328,null,"Акула большеротая",null,0]
[329,null,"Плавун южный",null,1]
[330,null,"Кит гренландский",null,0]
[331,null,"Скампи голубой",null,1]
[332,null,"Скат - кукушка",null,0]
[333,null,"Гетеротис",null,21]
[334,null,"Угорь крапчатый",null,2]
[335,null,"Флейторыл китайский",null,0]
[336,null,"Тунец синеперый",null,0]
[337,null,"Тунец Большеглазый",null,0]
[338,null,"Тунец длиннохвостый",null,1]
[339,null,"Акула кубинская ночная",null,0]
[340,null,"Барракуда Хеллера",null,0]
[341,null,"Омар капский",null,0]
[342,null,"Химера длинноносая",null,1]
[343,null,"Лангуст полифагус",null,0]
[344,null,"Гимнура Натальская",null,1]
[345,null,"Группер мраморный",null,1]
[346,null,"Бомбиль индоокеанский",null,0]
[347,null,"Акула рифовая белая",null,3]
[348,null,"Барракуда остроперая",null,3]
[349,null,"Спинорог масочный",null,0]
[350,null,"Спинорог синегорлый",null,0]
[351,null,"Миксина шестижаберная",null,0]
[352,null,"Группер шоколадный",null,7]
[353,null,"Марлин индо-тихоокеанский",null,0]
[354,null,"Акула лимонная",null,0]
[355,null,"Себарау",null,78]
[356,null,"Ехидна одноцветная",null,2]
[357,null,"Ехидна сулавесийская",null,0]
[358,null,"Вундерпус",null,0]
[359,null,"Краб-вампир яванский",null,15]
[360,null,"Конгер песчаный решетчатый",null,0]
[361,null,"Черепахоголов Стейнеджера",null,3]
[362,null,"Полосатик Райса",null,0]
[363,null,"Крайт морской",null,2]
[364,null,"Гурами шоколадный",null,45]
[365,null,"Наутилус палаванский",null,0]
[366,null,"Конгер макроцефал",null,0]
[367,null,"Акула головастая надувающаяся",null,0]
[368,null,"Акула вислоносая",null,0]
[369,null,"Акула щелеглазая",null,0]
[370,null,"Морская змея Хардвика",null,0]
[371,null,"Прометеева рыба",null,0]
[372,null,"Ехидна белолобая",null,1]
[373,null,"Кардинал пятнистый",null,0]
[374,null,"Конгер обуд",null,0]
[375,null,null,null,0]
[376,null,"Сцимнодалатия",null,0]
[377,null,"Цетотерий",null,0]
[378,null,"Отодус",null,0]
[379,null,"Акула-молот карибская",null,0]
[380,null,"Акула юкатанская",null,0]
[381,null,"Нотопогон",null,1]
[382,null,"Акула серая короткоперая",null,7]
[383,null,"Анчоус Харденберга",null,1]
[384,null,"Сардинелла желтополосая",null,50]
[385,null,"Алаша",null,1]
[386,null,"Саблезуб короткозубый",null,0]
[387,null,"Нетопырь длиннорылый",null,0]
[388,null,"Диплобатис гайянский",null,0]
[389,null,"Гимантолоф атлантический",null,0]
[390,null,"Опистопрокт коротконосый",null,0]
[391,null,"Базилозавр",null,0]
[392,null,"Акула кубинская кошачья",null,0]
[393,null,"Акула большеглазая песчаная",null,0]
[394,null,"Гуаса",null,0]
[395,null,"Макрель западноафриканская",null,0]
[396,null,"Антиас обыкновенный",null,23]
[397,null,"Батизавр воинственный",null,0]
[398,null,"Барбурисия рыжая",null,0]
[399,null,"Омар мозамбикский",null,0]
[400,null,"Краб крестообразный",null,0]
[401,null,"Омар алый когтистый",null,0]
[402,null,"Акула семижаберная",null,10]
[403,null,"Барракуда желтохвостая",null,9]
[404,null,"Скопелозавр",null,0]
[405,null,"Омосудид",null,0]
[406,null,"Парапристипомоид",null,0]
[407,null,"Сельдь - круглобрюшка",null,10]
[408,null,"Барракуда индийская",null,2]
[409,null,"Акула арабская",null,8]
[410,null,"Акула мадагаскарская острозубая",null,6]
[411,null,"Парапагурус",null,3]
[412,null,"Мобула серповидная",null,7]
[413,null,"Мобула короткоперая",null,1]
[414,null,"Мобула терстони",null,0]
[415,null,"Барракуда красная",null,2]
[416,null,"Барракуда большеглазая",null,1]
[417,null,"Конгер лорда Хоу",null,3]
[418,null,"Кохола Вилу",null,10]
[419,null,"Конгер японский",null,13]
[420,null,"Снэк",null,2]
[421,null,"Ножезуб полосатый",null,78]
[422,null,"Конгер мысовой",null,11]
[423,null,"Морская змея гладкая",null,2]
[424,null,"Каранкс желтоперый",null,18]
[425,null,"Конгер длинноперый",null,8]
[426,null,"Кохола Поколе",null,2]
[427,null,"Каранкс широкоротый",null,11]
[428,null,"Акула желтая",null,8]
[429,null,"Козобородка полосатая",null,1]
[430,null,"Акрофизетр",null,0]
[431,null,"Луциан кашмирский",null,37]
[432,null,"Махи-махи",null,9]
[433,null,"Каракатица японская",null,2]
[434,null,"Рувета",null,20]
[435,null,"Барабулька мелкозубая",null,12]
[436,null,"Рыба-каторжник",null,3]
[437,null,"Рыба-бабочка лимонная",null,8]
[438,null,"Каранкс Тилле",null,12]
[439,null,"Кохола Нуи",null,5]
[440,null,"Кохола Пигми",null,1]
[441,null,"Ау",null,1]
[442,null,"Кохола Полу",null,4]
[443,null,"Наутилус обыкновенный",null,3]
[444,null,"Аргонавт",null,2]
[445,null,"Тремоктопус",null,5]
[446,null,"Рыба-ангел японская",null,1]
[447,null,"Ехидна грациозная",null,12]
[448,null,"Улуа",null,0]
[449,null,"Кудрепер длиннорылый",null,0]
[450,null,"Кохола Сперм",null,3]
[451,null,"Кавалла островная",null,31]
[452,null,"Носорог Вламинга",null,12]
[453,null,"Рыба-павлин",null,16]
[454,null,"Камбала павлинья",null,3]
[455,null,"Даскиллус гавайский",null,3]
[456,null,"Мано мано",null,4]
[457,null,"Ехидна звездчатая",null,13]
[458,null,"Кит южный гладкий-альбинос",null,0]
[459,null,"Усач тигровый шестиполосый",null,4]
[460,null,"Ехидна полосатая",null,4]
[461,null,"Макрогнатус пятнистый",null,7]
[462,null,"Вьюн муреновидный",null,33]
[463,null,"Конгер большеглазый",null,2]
[464,null,"Махсир оранжевоплавниковый",null,34]
[465,null,"Акула святого Иосифа",null,0]
[466,null,"Гурами Вайланта",null,24]
[467,null,"Лягушка суматранская",null,5]
[468,null,"Ехидна гвинейская",null,7]
[469,null,"Томан",null,16]
[470,null,"Рыба-прилипало",null,0]
[471,null,"Махсир донгнайский",null,47]
[472,null,"Моллинезия парусная",null,17]
[473,null,"Гребешок коричневый",null,2]
[474,null,"Морская змея Белчера",null,0]
[475,null,"Ластохвост спиральный",null,1]
[476,null,"Неалот тихоокеанский",null,2]
[477,null,"Сарган пресноводный",null,26]
[478,null,"Гурами гигантский",null,52]
[479,null,"Сом Хасселя",null,36]
[480,null,"Конгер серебристый",null,5]
[481,null,"Гурами гигантский-альбинос",null,1]
[482,null,"Сом Нихофа",null,46]
[483,null,"Махсир золотой",null,0]
[484,null,"Акулка Аполлона",null,20]
[485,null,"Угорь болотный азиатский",null,29]
[486,null,"Богаскайа",null,0]
[487,null,"Змееголов императорский",null,0]
[488,null,"Змееголов лесной",null,45]
[489,null,"Змееголов Золотая кобра",null,0]
[490,null,"Змееголов коричневый",null,25]
[491,null,"Змееголов малабарский",null,20]
[492,null,"Аравана азиатская",null,2]
[493,null,"Расбора двухточечная",null,16]
[494,null,"Махсир малайский",null,19]
[495,null,"Рак пурпурный",null,5]
[496,null,"Махсир темный",null,0]
[497,null,"Усач - гаечный ключ",null,1]
[498,null,"Змееголов радужный",null,13]
[499,null,"Махсир красный",null,0]
[500,null,"Акула - небрия",null,0]
[501,null,"Сердеронг чернопятнистый",null,11]
[502,null,"Акула мадагаскарская",null,0]
[503,null,"Группер палевый",null,25]
[504,null,"Группер крупнопятнистый",null,21]
[505,null,"Хирург белогрудый",null,1]
[506,null,"Дистиходус шестиполосый",null,4]
[507,null,"Спинорог голубой",null,1]
[508,null,"Акула пелагическая лисья",null,0]
[509,null,"Акула пилозубая",null,0]
[510,null,"Сом малавийский",null,4]
[511,null,"Группер буропятнистый",null,4]
[512,null,"Ореохромис Каронга",null,14]
[513,null,"Протоптер бурый",null,0]
[514,null,"Протоптер малый",null,0]
[515,null,"Сиган яванский",null,12]
[516,null,"Плоскоголов бахромчатый",null,2]
[517,null,"Летрин небесный",null,6]
[518,null,"Барракуда тупорылая",null,9]
[519,null,"Акула шелковая",null,6]
[520,null,"Кампанго",null,3]
[521,null,"Мурена желторотая",null,1]
[522,null,"Мурена ленточная",null,0]
[523,null,"Мурена - зебра",null,3]
[524,null,"Группер шестиполосый",null,2]
[525,null,"Каранкс черный",null,6]
[526,null,"Сарган крокодиловый",null,4]
[527,null,"Скар двухцветный",null,0]
[528,null,"Платакс - нетопырь",null,0]
[529,null,"Носорог безрогий",null,0]
[530,null,"Носорог однорогий",null,0]
[531,null,"Краб малавийский голубой",null,2]
[532,null,"Краб танганьикский",null,0]
[533,null,"Краб монтивагус",null,1]
[534,null,"Крокодил узкорылый",null,0]
[535,null,"Многопёр Эндлихера",null,1]
[536,null,"Бротула многоусая",null,0]
[537,null,"Вариола белокаемчатая",null,0]
[538,null,"Алект вымпельный",null,0]
[539,null,"Акула большеносая",null,0]
[540,null,"Акула темная",null,0]
[541,null,"Лягушка роющая",null,1]
[542,null,"Цихлида - колибри",null,10]
[543,null,"Мормир бутылконосый",null,0]
[544,null,"Окунь вилохвостый",null,9]
[545,null,"Мбенга",null,2]
[546,null,"Тигровая рыба танзанийская",null,3]
[547,null,"Меланохромис Чипока",null,51]
[548,null,"Солидус",null,0]
[549,null,"Нимбохромис полистигма",null,3]
[550,null,"Коелатура мозамбикская",null,3]
[551,null,"Аухеногланис",null,7]
[552,null,"Мбамба",null,12]
[553,null,"Цихлида гигантская",null,5]
[554,null,"Уролоф полосатый",null,0]
[555,null,"Окунь танганьикский",null,4]
[556,null,"Окунь большеглазый",null,16]
[557,null,"Сом мраморный",null,6]
[558,null,"Золотой леопард",null,4]
[559,null,"Шпрот таганьикский",null,27]
[560,null,"Нодулария боеми",null,5]
[561,null,"Цихлида тупорылая",null,77]
[562,null,"Сом танганьикский",null,0]
[563,null,"Эферия эллиптическая",null,0]
[564,null,"Группер желто-синий",null,0]
[565,null,"Аспатария марнои",null,1]
[566,null,"Камерония Бургинья",null,0]
[567,null,"Шамбардия Валберга",null,1]
[568,null,"Угорь собачий",null,0]
[569,null,"Удильщик Коммерсона",null,0]
[570,null,"Сиган струйчатый",null,0]
[571,null,"Крылатка антенновая",null,0]
[572,null,"Кудрепер Форстера",null,1]
[573,null,"Трофеус звездчатый",null,0]
[574,null,"Цихлида-дельфин",null,0]
[575,null,"Стигматохромис вуди",null,0]
[576,null,"Сом ширентис",null,0]
[577,null,"Сомик - кукушка",null,10]
[578,null,"Аспатария пифлоидная",null,0]
[579,null,"Тифобия",null,0]
[580,null,"Буртония Фоаи",null,3]
[581,null,"Цихлида Ливингстона",null,9]
[582,null,"Мутела",null,3]
[583,null,"Денебола",null,0]
[584,null,"Акулка карликовая",null,0]
[585,null,"Иглобрюх-попугайчик",null,5]
[586,null,"Цапатеро",null,11]
[587,null,"Фундулюс",null,2]
[588,null,"Скватина американская",null,1]
[589,null,"Цапатеро-чакета",null,2]
[590,null,"Амфихт",null,2]
[591,null,"Кабра-мора",null,1]
[592,null,"Этмоптерус Шульца",null,3]
[593,null,"Акула флоридская",null,10]
[594,null,"Марлин атлантический",null,5]
[595,null,"Гуачанчо",null,6]
[596,null,"Гуативера",null,0]
[597,null,"Тарпон атлантический",null,0]
[598,null,"Бычерыл американский",null,0]
[599,null,"Кабуча",null,14]
[600,null,"Кабрилья",null,21]
[601,null,"Этмоптерус серый",null,12]
[602,null,"Котилокара",null,0]
[603,null,"Группер темный",null,1]
[604,null,"Акула Оустона",null,1]
[605,null,"Грамма королевская",null,3]
[606,null,"Акула острозубая песчаная",null,0]
[607,null,"Макрель китайская",null,0]
[608,null,"Акула американская кунья",null,0]
[609,null,"Устрица гигантская",null,1]
[610,null,"Бентодесма",null,0]
[611,null,"Хвостокол бахромчатый",null,1]
[612,null,"Кубера",null,0]
[613,null,"Хвостокол американский",null,0]
[614,null,null,null,0]
[615,null,"Макрель испанская",null,5]
[616,null,"Акула австралийская головастая",null,0]
[617,null,"Кобия",null,3]
[618,null,"Акула - нянька усатая",null,2]
[619,null,"Макрель широкополосая",null,1]
[620,null,"Макрель малагасийская",null,0]
[621,null,"Макрель квинслендская",null,0]
[622,null,"Макрель продольно-полосатая",null,0]
[623,null,"Макрель австралийская",null,0]
[624,null,"Звездочет крапчатый",null,5]
[625,null,"Акула гладкозубая",null,0]
[626,null,"Мурена европейская",null,0]
[627,null,"Группер индоокеанский малоглазый",null,0]
[628,null,"Скат-орляк изысканный",null,0]
[629,null,"Акула-нянька короткохвостая",null,0]
[630,null,"Подкаменщик пестроногий",null,0]
[631,null,"Скат Аддисона",null,0]
[632,null,"Минога каспийская",null,0]
[633,null,"Дораб",null,0]
[634,null,"Мобула японская",null,0]
[635,null,"Скат-орляк белоточечный",null,0]
[636,null,"Сладкогуб гигантский",null,0]
[637,null,"Скат пятнистый",null,9]
[638,null,"Скар рубиновый",null,0]
[639,null,"Скар широколобый",null,0]
[640,null,null,null,0]
[641,null,"Ремнезуб Блэнвиля",null,0]
[642,null,"Элагат",null,1]
[643,null,"Спинорог позолоченый",null,0]
[644,null,"Хвостокол широкохвостый",null,0]
[645,null,"Акула - пилохвост",null,0]
[646,null,"Амфитретус пелагический",null,0]
[647,null,"Гримпотевтис тихоокеанский",null,0]
[648,null,"Акула надувающаяся",null,0]
[649,null,"Мероу красный",null,0]
[650,null,"Корифена малая",null,1]
[651,null,"Акула карибская длиннорылая",null,11]
[652,null,"Гипоплектрус",null,1]
[653,null,"Копьеносец малый",null,2]
[654,null,"Кардинал",null,0]
[655,null,"Этелис королевский",null,8]
[656,null,"Макрель-Кавалла",null,16]
[657,null,"Макрель западноатлантическая",null,0]
[658,null,"Макрель бразильская",null,6]
[659,null,"Снэппер нитеперый",null,34]
[660,null,"Снэппер низкотелый",null,1]
[661,null,"Черна бурополосая",null,13]
[662,null,"Гаррупа-мармита",null,0]
[663,null,"Трахинот круглый",null,0]
[664,null,"Трахинот большой",null,6]
[665,null,"Трахинот Кеннеди",null,0]
[666,null,"Морской черт или удильщик европейский",null,4]
[667,null,"Змеиная макрель",null,5]
[668,null,"Лещ морской обыкновенный",null,74]
[669,null,"Белуга черноморская",null,2]
[670,null,"Дрейссена речная",null,0]
[671,null,"Судак канадский",null,3]
[672,null,"Терпуг одноперый",null,36]
[673,null,"Севрюга",null,7]
[674,null,"Ершоватка",null,23]
[675,null,"Адамуссиум",null,1]
[676,null,"Патагонский лобстер",null,1]
[677,null,"Змееголов",null,0]
[678,null,"Рак речной",null,4]
[679,null,"Сом солдатова",null,1]
[680,null,"Косатка уссурийская",null,10]
[681,null,"Верхогляд",null,2]
[682,null,"Лягушка китайская съедобная",null,6]
[683,null,"Сельдь американская",null,12]
[684,null,"Дельфин атлантический белобокий",null,6]
[685,null,"Косатка-скрипун",null,2]
[686,null,"Желтощек",null,8]
[687,null,"Сом",null,59]
[688,null,"Клювач северный",null,26]
[689,null,"Окунь алеутский",null,33]
[690,null,"Вырезуб",null,0]
[691,null,"Краб съедобный",null,0]
[692,null,"Ротан",null,22]
[693,null,"Каранкс большой",null,7]
[694,null,"Марлин полосатый",null,10]
[695,null,"Терпуг бурый",null,75]
[696,null,"Окунь северный морской",null,21]
[697,null,"Терпуг зайцеголовый",null,9]
[698,null,"Линь",null,44]
[699,null,"Маколор черный",null,58]
[700,null,"Амолопс чунганский",null,2]
[701,null,"Трахира Хоплиас, Малабарский хоплиас",null,4]
[702,null,"Беззубка вуда",null,1]
[703,null,"Тюрбо",null,2]
[704,null,"Сердцевидка съедобная",null,0]
[705,null,"Поллак",null,5]
[706,null,"Фикус изящный",null,0]
[707,null,"Бычок-кругляк",null,46]
[708,null,"Кета",null,25]
[709,null,"Мальма",null,19]
[710,null,"Чехонь",null,34]
[711,null,"Хризиптера сине-желтая",null,0]
[712,null,"Акула галапагосская",null,0]
[713,null,"Гольян Чекановского",null,0]
[714,null,"Хариус сибирский",null,48]
[715,null,"Корнерот Номуры",null,2]
[716,null,"Белуга",null,12]
[717,null,"Гольян Лаговского",null,52]
[718,null,"Гольян озерный",null,52]
[719,null,"Моторо",null,0]
[720,null,"Форель ручьевая",null,21]
[721,null,"Бестер",null,6]
[722,null,"Палия",null,5]
[723,null,"Губан колючий",null,32]
[724,null,"Карась морской",null,3]
[725,null,"Форель радужная",null,77]
[726,null,"Дельфин тусклый",null,6]
[727,null,"Дельфин Коммерсона",null,13]
[728,null,"Форель тигровая",null,0]
[729,null,"Краснопер мелкочешуйчатый",null,34]
[730,null,"Елец-андруга",null,0]
[731,null,"Синец",null,12]
[732,null,"Берш",null,46]
[733,null,"Судак",null,48]
[734,null,"Мальма лабынкырская",null,12]
[735,null,"Краснопёр монгольский",null,3]
[736,null,"Топь",null,10]
[737,null,"Быстрянка",null,1]
[738,null,"Цианея волосистая",null,0]
[739,null,"Тонна ленточная",null,1]
[740,null,"Дельфин китовидный южный",null,17]
[741,null,"Краб красный мангровый",null,2]
[742,null,"Дельфин курносый",null,0]
[743,null,"Дельфин китайский",null,3]
[744,null,"Пиранья обыкновенная",null,75]
[745,null,"Парусник",null,12]
[746,null,"Хариус ленский",null,7]
[747,null,"Нерка",null,34]
[748,null,"Валек",null,8]
[749,null,"Пятнистая озерная лягушка",null,1]
[750,null,"Галаксия пятнистая",null,8]
[751,null,"Группер корраловый красный",null,2]
[752,null,"Рыба-лиса",null,9]
[753,null,"Императорский ангел",null,0]
[754,null,"Ореховидка тонкая",null,0]
[755,null,"Скат полярный",null,18]
[756,null,"Скат короткохвостый",null,6]
[757,null,"Густера",null,28]
[758,null,"Голец якутский",null,0]
[759,null,"Хариус восточносибирский",null,3]
[760,null,"Трионикс китайский",null,21]
[761,null,"Кашалот карликовый",null,0]
[762,null,"Гребешок многообразный",null,0]
[763,null,"Тонна гигантская",null,0]
[764,null,"Керчак-яок",null,25]
[765,null,"Саланкс",null,2]
[766,null,"Треска восточная",null,35]
[767,null,"Лунник",null,5]
[768,null,"Минтай",null,17]
[769,null,"Скат Монтегю",null,10]
[770,null,"Амур черный",null,5]
[771,null,"Вьюн",null,53]
[772,null,"Бычок-цуцик",null,9]
[773,null,"Ерш-носарь",null,0]
[774,null,"Рипус",null,12]
[775,null,"Вампир адский",null,2]
[776,null,"Райская рыба круглохвостая",null,0]
[777,null,"Акула звездчатошипая",null,10]
[778,null,"Краб четырехугольный волосатый",null,0]
[779,null,"Каракатица лечебная",null,0]
[780,null,"Щука амурская",null,8]
[781,null,"Троегуб",null,1]
[782,null,"Карп гигантский",null,2]
[783,null,"Губан радужный",null,12]
[784,null,"Тасманский рак",null,3]
[785,null,"Микижа чилийская",null,17]
[786,null,"Скат Йенсена",null,3]
[787,null,"Горбуша южноамериканская",null,12]
[788,null,"Сиг амурский",null,13]
[789,null,"Навага тихоокеанская",null,54]
[790,null,"Минога огайская",null,2]
[791,null,"Сомик канальный",null,1]
[792,null,"Рак сигнальный",null,1]
[793,null,"Краппи белый",null,6]
[794,null,"Сомик желтый",null,2]
[795,null,"Шемая черноморская",null,1]
[796,null,"Минога морская",null,0]
[797,null,"Осетр атлантический",null,14]
[798,null,"Ауха",null,36]
[799,null,"Голец усатый",null,2]
[800,null,"Энтехинус китайский",null,0]
[801,null,"Группер картофельный",null,35]
[802,null,"Группер томатный",null,15]
[803,null,"Луциан темно-бурый",null,8]
[804,null,"Марлин голубой",null,7]
[805,null,"Окунь пятнистый",null,67]
[806,null,"Мригал",null,14]
[807,null,"Карп индийский",null,10]
[808,null,"Тунец голубой",null,16]
[809,null,"Чукучан китайский",null,0]
[810,null,"Угорь речной американский",null,0]
[811,null,"Архитеутис",null,3]
[812,null,"Тригла желтая",null,11]
[813,null,"Скат колючий",null,28]
[814,null,"Форель золотая",null,0]
[815,null,"Щука травяная",null,0]
[816,null,"Угорь речной японский",null,5]
[817,null,"Краб пресноводный",null,9]
[818,null,"Бутылконос северный",null,10]
[819,null,"Сардина европейская",null,2]
[820,null,"Кефаль-губач",null,6]
[821,null,"Лосось атлантический",null,18]
[822,null,"Осетр русский",null,5]
[823,null,"Кашорро краснохвостый",null,21]
[824,null,"Тунец желтопёрый",null,12]
[825,null,"Тартаруга",null,5]
[826,null,"Угорь рисовый",null,4]
[827,null,"Щука красноперая",null,0]
[828,null,"Морская собачка",null,0]
[829,null,"Форель мраморная",null,0]
[830,null,"Кижуч",null,16]
[831,null,"Шип",null,9]
[832,null,"Сомик голубой",null,2]
[833,null,"Краппи черный",null,27]
[834,null,"Пелядь",null,35]
[835,null,"Яго Гаррика",null,0]
[836,null,"Сом амурский",null,40]
[837,null,"Окунь песчаный",null,37]
[838,null,"Веслонос",null,2]
[839,null,"Окунь прибрежный",null,3]
[840,null,"Окунь большеротый",null,8]
[841,null,"Окунь ушастый",null,9]
[842,null,"Микижа",null,44]
[843,null,"Нейва",null,14]
[844,null,"Лосось Кларка",null,1]
[845,null,"Зевглодон",null,0]
[846,null,"Лаврак белый",null,5]
[847,null,"Зигофицетер",null,0]
[848,null,"Дельфин речной китайский",null,0]
[849,null,"Дельфин Хамильтона",null,0]
[850,null,"Пыжьян",null,66]
[851,null,"Широколобка красная",null,65]
[852,null,"Окунь каменный",null,31]
[853,null,"Бикуда",null,51]
[854,null,"Рыбец",null,18]
[855,null,"Кайман гладколобый",null,78]
[856,null,"Ерш",null,57]
[857,null,"Цианея Цетлина",null,0]
[858,null,"Кассиопея Орната",null,0]
[859,null,"Дельфин китовидный северный",null,0]
[860,null,"Кижуч южноамериканский",null,13]
[861,null,"Подкаменщик",null,20]
[862,null,"Карась якутский",null,56]
[863,null,"Байкальский осетр",null,3]
[864,null,"Елец сибирский",null,24]
[865,null,"Солнечник обыкновенный",null,0]
[866,null,"Сомик американский",null,4]
[867,null,"Окунь красноглазый",null,38]
[868,null,"Хариус байкальский Белый",null,3]
[869,null,"Хариус байкальский черный",null,7]
[870,null,"Широколобка темная",null,4]
[871,null,"Омуль маломорский",null,6]
[872,null,"Дельфин Гектора",null,0]
[873,null,"Скумбрия атлантическая",null,47]
[874,null,"Сельдь черноморская",null,11]
[875,null,"Акула-молот обыкновенная",null,12]
[876,null,"Лещ морской белый",null,80]
[877,null,"Рыба-луна",null,21]
[878,null,"Сарган",null,0]
[879,null,"Белокровка большеглазая",null,8]
[880,null,"Солнечник синежаберный",null,42]
[881,null,"Кефаль-лобан",null,31]
[882,null,"Налим",null,46]
[883,null,"Дорадо",null,42]
[884,null,"Акула-лисица",null,9]
[885,null,"Кальмар антарктический",null,14]
[886,null,"Спинорог бело-зеленый",null,1]
[887,null,"Кальмар длинный",null,49]
[888,null,"Манта",null,15]
[889,null,"Новозеландская мерлуза",null,8]
[890,null,"Белокровка Ричардсона",null,6]
[891,null,"Белокровка щуковидная",null,29]
[892,null,"Камбала морская",null,76]
[893,null,"Глосса",null,0]
[894,null,"Палтус атлантический",null,10]
[895,null,"Мольва",null,28]
[896,null,"Ангел морской антарктический",null,26]
[897,null,"Бородатка Скуры",null,19]
[898,null,"Белокровка Аэлиты",null,1]
[899,null,"Щука черная",null,0]
[900,null,"Голец - кристивомер",null,43]
[901,null,"Сплэйк",null,0]
[902,null,"Палия американская",null,1]
[903,null,"Щука-маскинонг",null,2]
[904,null,"Макрель голубая",null,35]
[905,null,"Акула-молот бронзовая",null,24]
[906,null,"Лещ морской кинжальный",null,54]
[907,null,"Стерлядь",null,40]
[908,null,"Бычок-кнут",null,3]
[909,null,"Медуза антарктическая",null,66]
[910,null,"Гвоздарь Световидова",null,0]
[911,null,"Нототения длинноперая",null,39]
[912,null,"Паук морской антарктический",null,3]
[913,null,"Морская звезда южная",null,43]
[914,null,"Покрышка старая",null,48]
[915,null,"Аллигатор китайский",null,0]
[916,null,"Луциан чернохвостый",null,21]
[917,null,"Халиклистус Штейнегера",null,0]
[918,null,"Тунец длинноперый",null,27]
[919,null,"Сомик леопардовый",null,1]
[920,null,"Павлиний окунь-бабочка",null,44]
[921,null,"Хирург флаговый",null,0]
[922,null,"Скат акулий",null,3]
[923,null,"Акула темноперая",null,1]
[924,null,"Дельфин крестовидный",null,0]
[925,null,"Зубатка пятнистая",null,31]
[926,null,"Треска атлантическая",null,14]
[927,null,"Дельфин чилийский",null,0]
[928,null,"Путассу северная",null,11]
[929,null,"Клоун мавританский",null,27]
[930,null,"Осетр китайский",null,0]
[931,null,"Губан носатый",null,5]
[932,null,"Дельфин беломордый",null,0]
[933,null,"Пикша",null,38]
[934,null,"Щука глубинная",null,8]
[935,null,"Дельфин крупнозубый",null,1]
[936,null,"Стерлядь сибирская",null,10]
[937,null,"Голец Таранца",null,14]
[938,null,"Аурелия ушастая",null,0]
[939,null,"Дельфин обыкновенный",null,15]
[940,null,"Подкаменщик сибирский",null,33]
[941,null,"Лещ амурский черный",null,62]
[942,null,"Горбуша",null,72]
[943,null,"Дельфин Хэвисайда",null,1]
[944,null,"Осетр якутский",null,4]
[945,null,"Дельфин тихоокеанский",null,0]
[946,null,"Хариус европейский",null,27]
[947,null,"Моллюск",null,23]
[948,null,"Голец черского",null,42]
[949,null,"Медуза - пушечное ядро",null,0]
[950,null,"Сом Суруби",null,40]
[951,null,"Палия южноамериканская",null,52]
[952,null,"Нерпа байкальская",null,0]
[953,null,"Дельфин серый",null,0]
[954,null,"Омуль чивыркуйский",null,1]
[955,null,"Спинорог Пикассо",null,12]
[956,null,"Аротрон белоточечный",null,5]
[957,null,"Тунец южный",null,7]
[958,null,"Спинорог точечный",null,25]
[959,null,"Пагр красный",null,18]
[960,null,"Пескарь",null,33]
[961,null,"Кораблик португальский",null,0]
[962,null,"Рыба-наполеон",null,28]
[963,null,"Спинорог крупнопятнистый",null,12]
[964,null,"Рыба-бекас",null,0]
[965,null,"Дорадо золотой",null,0]
[966,null,"Сима южноамериканская",null,24]
[967,null,"Щучка Хьюжета",null,10]
[968,null,"Морская оса",null,0]
[969,null,"Кумжа южноамериканская",null,48]
[970,null,"Лягушка озерная",null,3]
[971,null,"Акула серо-бурая",null,20]
[972,null,"Варан водяной",null,0]
[973,null,"Голец арктический",null,78]
[974,null,"Веслонос китайский",null,0]
[975,null,"Нельма",null,9]
[976,null,"Окунь морской золотистый",null,76]
[977,null,"Окунь морской норвежский",null,41]
[978,null,"Катран",null,57]
[979,null,"Акула мелкозубая",null,12]
[980,null,"Пиранья ромбовидная",null,68]
[981,null,"Акула - собака",null,24]
[982,null,"Сайда",null,17]
[983,null,"Сайка",null,9]
[984,null,"Зубарик обыкновенный",null,25]
[985,null,"Окунь - клювач",null,8]
[986,null,"Идол мавританский",null,0]
[987,null,"Ангел лирохвостый",null,3]
[988,null,"Клюворыл",null,70]
[989,null,"Муксун",null,27]
[990,null,"Таймень",null,32]
[991,null,"Каракатица расписная",null,0]
[992,null,"Ваху",null,6]
[993,null,"Спинорог расписной",null,4]
[994,null,"Спинорог заплаточный",null,7]
[995,null,"Каури-монета",null,0]
[996,null,"Пескарь ящерный",null,0]
[997,null,"Вариола радужная",null,1]
[998,null,"Черепаха кожистая",null,2]
[999,null,"Краб кокосовый",null,0]
[1000,null,"Луциан розовый",null,1]
[1001,null,"Группер стройный",null,0]
[1002,null,"Толстолобик пестрый",null,2]
[1003,null,"Жерех - лысач",null,1]
[1004,null,"Мазутный двухголов",null,0]
[1005,null,"Рыба-бабочка сомалийская",null,0]
[1006,null,"Альбула",null,0]
[1007,null,"Кальмар гигантский",null,1]
[1008,null,"Хирург зебровый",null,0]
[1009,null,"Масляная рыба",null,1]
[1010,null,"Даллия",null,1]
[1011,null,"Ряпушка сибирская",null,0]
[1012,null,"Луциан императорский красный",null,1]
[1013,null,"Луциан королевский",null,8]
[1014,null,"Барабулька",null,3]
[1015,null,"Рыба-белка",null,0]
[1016,null,"Чилим",null,2]
[1017,null,"Омуль пенжинский",null,0]
[1018,null,"Головастик гигантский",null,0]
[1019,null,"Судак глубинный",null,1]
[1020,null,"Рак пятнистый",null,1]
[1021,null,"Мидия",null,3]
[1022,null,"Рапана жилковатая",null,0]
[1023,null,"Акула лососевая",null,1]
[1024,null,"Макрурус малоглазый",null,0]
[1025,null,"Зубатка дальневосточная",null,1]
[1026,null,"Палия кряжевая",null,0]
[1027,null,"Прудовик",null,0]
[1028,null,"Улитка",null,0]
[1029,null,"Ряпушка переславская",null,0]
[1030,null,"Целакант коморский",null,0]
[1031,null,"Сиг-востряк",null,0]
[1032,null,"Минога тихоокеанская",null,0]
[1033,null,"Горбыль",null,0]
[1034,null,"Луфарь",null,0]
[1035,null,"Морская лисица",null,0]
[1036,null,"Минога украинская",null,0]
[1037,null,"Кумжа черноморская",null,1]
[1038,null,"Храмуля",null,2]
[1039,null,"Калуга",null,0]
[1040,null,"Палия лудожная",null,2]
[1041,null,"Угай мелкочешуйный",null,0]
[1042,null,"Луциан синеполосый",null,6]
[1043,null,"Тракакса",null,5]
[1044,null,"Сельдь каспийская",null,7]
[1045,null,"Акула белоглазая",null,0]
[1046,null,"Сомик черный",null,2]
[1047,null,"Акула ночная",null,1]
[1048,null,"Дасцилл зебровидный",null,1]
[1049,null,"Хвостокол Мацубары",null,0]
[1050,null,"Сладкогуб пятнистый",null,0]
[1051,null,"Колюшка трехиглая",null,6]
[1052,null,"Кассиопея Андромеда",null,0]
[1053,null,"Мойва",null,52]
[1054,null,"Хариус лабынкырский",null,0]
[1055,null,"Угай крупночешуйчатый",null,4]
[1056,null,"Кит серый",null,13]
[1057,null,"Сайра атлантическая",null,3]
[1058,null,"Черепаха каспийская",null,3]
[1059,null,"Тугун",null,0]
[1060,null,"Уклейка",null,0]
[1061,null,"Ряпушка",null,1]
[1062,null,"Орфа",null,0]
[1063,null,"Конь пестрый",null,30]
[1064,null,"Шемая",null,3]
[1065,null,"Черт лабынкырский",null,1]
[1066,null,"Чукучан",null,7]
[1067,null,"Востробрюшка уссурийская",null,0]
[1068,null,"Чебак",null,0]
[1069,null,"Даватчан",null,0]
[1070,null,"Длиннорылый полурыл",null,0]
[1071,null,"Осман голый",null,1]
[1072,null,"Осетр амурский",null,1]
[1073,null,"Арапаима",null,0]
[1074,null,"Кэтфиш",null,0]
[1075,null,"Лосось каспийский",null,0]
[1076,null,"Кутум",null,0]
[1077,null,"Линь золотистый",null,0]
[1078,null,"Колюшка девятииглая",null,3]
[1079,null,"Спинорог оранжевополосый",null,1]
[1080,null,"Спинорог Розовохвостый",null,0]
[1081,null,"Спинорог Краснозубый",null,0]
[1082,null,"Спинорог голубоперый",null,0]
[1083,null,"Спинорог желтомордый",null,2]
[1084,null,"Лямбис подагрический",null,2]
[1085,null,"Конус Географический",null,3]
[1086,null,"Стромбус Королевский",null,0]
[1087,null,"Черепаха зеленая",null,0]
[1088,null,"Ябби",null,2]
[1089,null,"Лещ черный южный",null,3]
[1090,null,"Аррип малый",null,1]
[1091,null,"Крокодил Джонстона",null,0]
[1092,null,"Двухцветная пеламида",null,0]
[1093,null,"Комета, Каллоплезиопс",null,0]
[1094,null,"Окунь золотой",null,25]
[1095,null,"Пигоплит, Королевский ангел",null,0]
[1096,null,"Энгидрина носатая",null,0]
[1097,null,"Мангровый джек",null,1]
[1098,null,"Мелкозубый пилорыл",null,0]
[1099,null,"Гребешок коралловый",null,0]
[1100,null,"Сиган звездчатый",null,0]
[1101,null,"Голец альпийский",null,0]
[1102,null,"Помакант рябой",null,0]
[1103,null,"Кузовок рогатый",null,0]
[1104,null,"Акула мальгашская",null,3]
[1105,null,"Логгерхед",null,1]
[1106,null,"Младица или Лосось дунайский",null,0]
[1107,null,"Камбала кесслера",null,3]
[1108,null,"Долгопер средиземноморский",null,12]
[1109,null,"Евдошка европейская",null,0]
[1110,null,"Голубая линкия",null,0]
[1111,null,"Тасманский краб",null,0]
[1112,null,"Офиура полосатая",null,2]
[1113,null,"Фромия элегантная",null,0]
[1114,null,"Морская звезда красношипая",null,1]
[1115,null,"Аротрон колючий",null,0]
[1116,null,"Кузовок-кубик",null,21]
[1117,null,"Гимносарда",null,0]
[1118,null,"Акула узкозубая",null,0]
[1119,null,"Ангел черноплавничный",null,0]
[1120,null,"Мактра китайская",null,0]
[1121,null,"Каллитака Адамса",null,0]
[1122,null,"Гребешок свифта",null,0]
[1123,null,"Гребешок бело-розовый",null,0]
[1124,null,"Перонидия жилковатая",null,0]
[1125,null,"Краб пятиугольный волосатый",null,0]
[1126,null,"Краб-стригун",null,1]
[1127,null,"Мерценария стимпсона",null,0]
[1128,null,"Макома широкая",null,0]
[1129,null,"Петушок",null,0]
[1130,null,"Узо-угай",null,2]
[1131,null,"Микижа шантарская",null,0]
[1132,null,"Угольная рыба",null,10]
[1133,null,"Морской ворон",null,1]
[1134,null,"Сиг хадары",null,0]
[1135,null,"Глицимерис приморский",null,0]
[1136,null,"Мактра сахалинская",null,0]
[1137,null,"Серрипес замечательный",null,1]
[1138,null,"Морской монах",null,0]
[1139,null,"Кардиум реснитчатый",null,0]
[1140,null,"Краб мохнаторукий японский",null,0]
[1141,null,"Барамунди",null,0]
[1142,null,"Саратога",null,3]
[1143,null,"Акула черноперая",null,0]
[1144,null,"Австралийский шишечник",null,0]
[1145,null,"Акула китовая",null,16]
[1146,null,"Ворчун крапчатый",null,2]
[1147,null,"Гребешок лунный",null,18]
[1148,null,"Стромбус волнистый",null,1]
[1149,null,"Бородавчатка",null,2]
[1150,null,"Брызгун крупнопятнистый",null,28]
[1151,null,"Осетр сахалинский",null,0]
[1152,null,"Карась мухтельский",null,0]
[1153,null,"Кальмар тихоокеанский",null,0]
[1154,null,"Краб-стригун японский",null,0]
[1155,null,"Кальмар командорский",null,0]
[1156,null,"Коаро",null,1]
[1157,null,"Австралийский анчоус",null,12]
[1158,null,"Галаксия тасманская",null,1]
[1159,null,"Мальма южная",null,0]
[1160,null,"Малакост черный",null,0]
[1161,null,"Пинагор",null,4]
[1162,null,"Губан гребенчатый",null,7]
[1163,null,"Скат лучевой",null,2]
[1164,null,"Акула полярная",null,8]
[1165,null,"Промикропс",null,1]
[1166,null,"Акула песчаная",null,0]
[1167,null,"Акула японская бычья",null,3]
[1168,null,"Скалозуб бурый",null,7]
[1169,null,"Камбала звездчатая",null,6]
[1170,null,"Сима",null,55]
[1171,null,"Лиманда длиннорылая",null,0]
[1172,null,"Птеригоплихт парчовый",null,1]
[1173,null,"Абрамитес мраморный",null,1]
[1174,null,"Багре гури",null,2]
[1175,null,"Мастацембелус краснополосый",null,1]
[1176,null,"Апистограмма факельная",null,4]
[1177,null,"Бельдюга восточная",null,1]
[1178,null,"Мактромерис изменчивый",null,4]
[1179,null,"Песчанка тихоокеанская",null,3]
[1180,null,"Каллиста короткосифонная",null,2]
[1181,null,"Краб колючий",null,1]
[1182,null,"Акула азиатская кунья",null,20]
[1183,null,"Перуанский ансчоус",null,2]
[1184,null,"Краб королевский",null,0]
[1185,null,"Устрица",null,3]
[1186,null,"Аррип Большой",null,8]
[1187,null,"Патагонский гребешок",null,0]
[1188,null,"Кит карликовый",null,11]
[1189,null,"Лещ колючеперый",null,0]
[1190,null,"Лемонема",null,18]
[1191,null,"Тунец полосатый",null,3]
[1192,null,"Чилийская пеламида",null,6]
[1193,null,"Омуль байкальский",null,11]
[1194,null,"Омуль",null,20]
[1195,null,"Перуанская ставрида",null,10]
[1196,null,"Желтохвост",null,14]
[1197,null,"Острорылый крокодил",null,25]
[1198,null,"Макропод",null,0]
[1199,null,"Оникия",null,0]
[1200,null,"Хапаку",null,0]
[1201,null,"Кои Сёва",null,0]
[1202,null,"Камбала полосатая",null,27]
[1203,null,"Пескарь китайский",null,12]
[1204,null,"Пескарь бронзовый",null,1]
[1205,null,"Буффало черный",null,0]
[1206,null,"Инанга",null,5]
[1207,null,"Камбала зеленая",null,7]
[1208,null,"Менёк",null,0]
[1209,null,"Флейторыл",null,0]
[1210,null,"Букцинум",null,1]
[1211,null,"Золотистая скорпена",null,2]
[1212,null,"Камнеточец",null,0]
[1213,null,"Усач днепровский",null,0]
[1214,null,"Калинка",null,77]
[1215,null,"Краб травяной",null,0]
[1216,null,"Акула Сейла",null,4]
[1217,null,"Акула-бык",null,0]
[1218,null,"Тасманский пескарь",null,3]
[1219,null,"Конголли",null,5]
[1220,null,"Перуанская сериолелла",null,11]
[1221,null,"Рыба-лира",null,0]
[1222,null,"Ленок острорылый",null,13]
[1223,null,"Акула длиннокрылая",null,15]
[1224,null,"Акула тигровая",null,64]
[1225,null,"Акула белоперая",null,6]
[1226,null,"Акула шестижаберная",null,11]
[1227,null,"Каранкс синеплавниковый",null,4]
[1228,null,"Акула кошачья",null,0]
[1229,null,"Окунь-пират",null,0]
[1230,null,"Пирапутанга",null,0]
[1231,null,"Сомик оливковый",null,0]
[1232,null,"Мусум",null,12]
[1233,null,"Кефаль алмазная",null,2]
[1234,null,"Гребешок приморский",null,5]
[1235,null,"Пескарь - лень",null,0]
[1236,null,"Анчоус японский",null,22]
[1237,null,"Осетр персидский",null,62]
[1238,null,"Группер леопардовый",null,26]
[1239,null,"Макруронус новозеландский",null,0]
[1240,null,"Акула суповая",null,33]
[1241,null,"Пятнистый воббегонг",null,4]
[1242,null,"Сериола большая",null,5]
[1243,null,"Акула пепельная",null,11]
[1244,null,"Пузанок дунайский",null,1]
[1245,null,"Пескарь ленский",null,1]
[1246,null,"Чир",null,4]
[1247,null,"Рыба-меч",null,32]
[1248,null,"Лещ белый",null,0]
[1249,null,"Кои Кохаку",null,2]
[1250,null,"Акула серо-голубая",null,12]
[1251,null,"Мандаринка",null,1]
[1252,null,"Группер павлиний",null,20]
[1253,null,"Акула индонезийская",null,1]
[1254,null,"Белоглазка",null,29]
[1255,null,"Рак длиннопалый",null,0]
[1256,null,"Ремнезуб Грея",null,50]
[1257,null,"Шабути",null,1]
[1258,null,"Красный конгрио",null,0]
[1259,null,"Гребешок исландский",null,0]
[1260,null,"Налим тонкохвостый",null,0]
[1261,null,"Перуанская макрель",null,2]
[1262,null,"Химера европейская",null,2]
[1263,null,"Кашалот-альбинос",null,2]
[1264,null,"Кои Оренжи Огон",null,0]
[1265,null,"Пагелл красный",null,20]
[1266,null,"Хирург желтоплавничный",null,9]
[1267,null,"Шпрот европейский",null,8]
[1268,null,"Палтус синекорый",null,6]
[1269,null,"Терпуг Стеллера",null,9]
[1270,null,"Тарань",null,3]
[1271,null,"Черепаха болотная",null,0]
[1272,null,"Усач обыкновенный",null,16]
[1273,null,"Камбала двухлинейная",null,1]
[1274,null,"Мускулус",null,0]
[1275,null,"Боция зебра",null,2]
[1276,null,"Миксина атлантическая",null,0]
[1277,null,"Краб китайский мохнорукий",null,0]
[1278,null,"Палтус стрелозубый",null,1]
[1279,null,"Мурена ячеистая",null,5]
[1280,null,"Пеленгас",null,8]
[1281,null,"Краб камчатский",null,0]
[1282,null,"Подуст",null,12]
[1283,null,"Финта",null,13]
[1284,null,"Владиславия",null,0]
[1285,null,"Осетр сибирский",null,4]
[1286,null,"Группер Квинслендский",null,3]
[1287,null,"Пузанок",null,9]
[1288,null,"Попока",null,14]
[1289,null,"Корюшка зубатая азиатская",null,5]
[1290,null,"Марлин черный",null,5]
[1291,null,"Голец-усач сибирский",null,0]
[1292,null,"Патагонский клыкач",null,2]
[1293,null,"Рыба-лягушка",null,0]
[1294,null,"Лиманда сахалинская",null,11]
[1295,null,"Гринда короткоплавниковая",null,4]
[1296,null,"Акула зебровая",null,1]
[1297,null,"Лудога",null,0]
[1298,null,"Звезда-подушка",null,0]
[1299,null,"Валаамка",null,0]
[1300,null,"Черепаха саванная",null,0]
[1301,null,"Пиранья вымпельная",null,3]
[1302,null,"Аравана серебристая",null,14]
[1303,null,"Морской финик",null,0]
[1304,null,"Морской орел пятнистый",null,3]
[1305,null,"Мако длинноплавниковый",null,4]
[1306,null,"Кайман крокодиловый",null,4]
[1307,null,"Гребешок раскрашенный",null,1]
[1308,null,"Багре негро",null,2]
[1309,null,"Кайман черный",null,1]
[1310,null,"Дискус зеленый",null,2]
[1311,null,"Скат-орляк австралийский",null,0]
[1312,null,"Лещ восточно-сибирский",null,4]
[1313,null,"Рогатка",null,6]
[1314,null,"Палтус белокорый",null,5]
[1315,null,"Лоцман",null,20]
[1316,null,"Австралийский колючепёр",null,0]
[1317,null,"Угорь электрический",null,0]
[1318,null,"Шортбилл",null,0]
[1319,null,"Осьминог синекольчатый",null,0]
[1320,null,"Нанностом Бекфорда",null,53]
[1321,null,"Мерланг",null,53]
[1322,null,"Кальмар обыкновенный",null,0]
[1323,null,"Группер странствующий",null,1]
[1324,null,"Сом-плоскоголовик",null,9]
[1325,null,"Золотистая сериола",null,7]
[1326,null,"Гребешок антарктический",null,103]
[1327,null,"Криль подледный",null,113]
[1328,null,"Белокровка глубинная",null,86]
[1329,null,"Белокровка парусная",null,137]
[1330,null,"Нототения-звездочет",null,101]
[1331,null,"Белокровка патагонская",null,112]
[1332,null,"Волосозуб",null,95]
[1333,null,"Голавль",null,151]
[1334,null,"Жерех",null,90]
[1335,null,"Елец",null,89]
[1336,null,"Язь",null,134]
[1337,null,"Голец Леванидова",null,159]
[1338,null,"Сапог рваный",null,135]
[1339,null,"Кунджа",null,92]
[1340,null,"Чавыча",null,87]
[1341,null,"Вобла",null,107]
[1342,null,"Сфирена мелкочешуйная",null,84]
[1343,null,"Гонатус",null,83]
[1344,null,"Акула белая",null,151]
[1345,null,"Акула-молот гигантская",null,82]
[1346,null,"Сазан",null,106]
[1347,null,"Толстолобик белый",null,85]
[1348,null,"Корюшка",null,85]
[1349,null,"Угорь короткоребристый",null,91]
[1350,null,"Луциан зеленый",null,116]
[1351,null,"Зеленушка",null,90]
[1352,null,"Скат гитарный",null,108]
[1353,null,"Лаврак полосатый",null,87]
[1354,null,"Крокодил гребнистый",null,137]
[1355,null,"Сейвал или кит ивасевый",null,106]
[1356,null,"Берикс австралийский",null,90]
[1357,null,"Омуль северобайкальский",null,105]
[1358,null,"Полосатик карликовый",null,157]
[1359,null,"Акула голубая",null,142]
[1360,null,"Гринда обыкновенная",null,132]
[1361,null,"Форель озерная",null,87]
[1362,null,"Бонито",null,95]
[1363,null,"Акула гренландская",null,143]
[1364,null,"Лосось южноамериканский",null,122]
[1365,null,"Омуль посольский",null,96]
[1366,null,"Окунь малоротый",null,92]
[1367,null,"Чавыча южноамериканская",null,93]
[1368,null,"Желтокрылка",null,81]
[1369,null,"Морской еж",null,114]
[1370,null,"Вьюн серополосый",null,107]
[1371,null,"Змееголов черный",null,145]
[1372,null,"Виттина короманделиана",null,108]
[1373,null,"Бабочка малавийская",null,103]
[1374,null,"Кальвус",null,111]
[1375,null,"Окунь гладкий",null,102]
[1376,null,"Сом лесной",null,126]
[1377,null,"Креветка - хоббит",null,112]
[1378,null,"Щучка азиатская",null,128]
[1379,null,"Апсил зубатый",null,87]
[1380,null,"Нандус борнейский",null,84]
[1381,null,"Кит синий северный",null,145]
[1382,null,"Ламна или Акула сельдевая атлантическая",null,127]
[1383,null,"Морская звезда заметная",null,111]
[1384,null,"Окунь малый",null,100]
[1385,null,"Пагр австралийский",null,84]
[1386,null,"Селар",null,143]
[1387,null,"Флагохвост гавайский",null,95]
[1388,null,"Карп голый",null,189]
[1389,null,"Сиг",null,224]
[1390,null,"Кит горбатый",null,201]
[1391,null,"Змееголов полосатый",null,163]
[1392,null,"Перка",null,190]
[1393,null,"Усач жесткогубый",null,227]
[1394,null,"Белуха",null,186]
[1395,null,"Усач борнейский",null,169]
[1396,null,"Полурыл лесной",null,240]
[1397,null,"Усач Ваандерса",null,220]
[1398,null,"Усач Бэнкси",null,235]
[1399,null,"Кит горбатый-альбинос",null,186]
[1400,null,"Тиляпия Зилля",null,178]
[1401,null,"Бычок - трахидерм",null,220]
[1402,null,"Белокровка угольная",null,208]
[1403,null,"Скалярия Леопольда",null,182]
[1404,null,"Плосконос антарктический",null,165]
[1405,null,"Лаврак",null,242]
[1406,null,"Акула гигантская",null,199]
[1407,null,"Амур белый",null,162]
[1408,null,"Форель севанская",null,169]
[1409,null,"Барракуда большая",null,237]
[1410,null,"Ленок",null,211]
[1411,null,"Узконос Шарко",null,308]
[1412,null,"Узконос южногеоргианский",null,284]
[1413,null,"Карп зеркальный",null,243]
[1414,null,"Лещ",null,259]
[1415,null,"Макрогнатус зебровый",null,256]
[1416,null,"Кераи",null,285]
[1417,null,"Омуль селенгинский",null,312]
[1418,null,"Кит японский",null,320]
[1419,null,"Расбора обыкновенная",null,322]
[1420,null,"Полосатик южный",null,265]
[1421,null,"Косатка",null,264]
[1422,null,"Бутылконос плоскоголовый",null,368]
[1423,null,"Робало",null,327]
[1424,null,"Щука обыкновенная",null,389]
[1425,null,"Угорь",null,378]
[1426,null,"Махсир обыкновенный",null,328]
[1427,null,"Красноперка",null,342]
[1428,null,"Усач краснохвостый",null,391]
[1429,null,"Морской еж антарктический",null,334]
[1430,null,"Белокровка Вильсона",null,474]
[1431,null,"Змееголов карликовый",null,408]
[1432,null,"Окунь",null,457]
[1433,null,"Белокровка зеленая",null,409]
[1434,null,"Кашалот",null,510]
[1435,null,"Карась золотой",null,564]
[1436,null,"Акула антарктическая полярная",null,532]
[1437,null,"Карп чешуйчатый",null,506]
[1438,null,"Карась серебряный",null,514]
[1439,null,"Анабас",null,617]
[1440,null,"Голомянка",null,624]
[1441,null,"Полосатик малый",null,634]
[1442,null,"Белокровка носорогая",null,739]
[1443,null,"Ледяная рыба",null,842]
[1444,null,"Белокровка крокодиловая",null,816]
[1445,null,"Клыкач антарктический",null,820]
[1446,null,"Полосатик Брайда",null,914]
[1447,null,"Плотва",null,977]
[1448,null,"Сом лягушковый",null,1205]
[1449,null,"Змееголов пятнистый",null,1306]
[1450,null,"Подлещик",null,2134]
[1451,null,"Змееголов глазчатый",null,2318]
[1452,null,"Южная путассу",null,2475]
[1453,null,"Пингвин королевский",null,3297]
[1454,null,"Пингвин императорский",null,3635]
[1455,null,"Пингвин папуанский",null,3947]
[1456,null,"Бородатка Скотта",null,4356]
[1457,null,"Финвал",null,5222]
[1458,null,"Трематом чешуйчатый",null,6462]
[1459,null,"Бородатка Барсукова",null,6539]
[1460,null,"Пингвин антарктический",null,6922]
[1461,null,"Серебрянка антарктическая",null,7368]
[1462,null,"Бородатка бирюзовая",null,9258]
[1463,null,"Бородатка Орианы",null,9605]
[1464,null,"Широколобик большой",null,16096]
[]
[]
[]
[" - иконкой отмечена рыба с повышенной ценой."]
["Главная »"]
["Цены на рыбу"]
[]
["Играй в мобильную версию Русской рыбалки Приложение доступно для Android"]
[]
["Подробнее о мобильной версии "]
[]
["Русская рыбалка"]
[]
["Загрузить игру"]
["Тарифы и оплата"]
["Обои на рабочий стол"]
["Новости"]
["Регулярные турниры"]
["Экспедиции"]
["Контакты"]
[]
["Рейтинги"]
[]
["Рейтинги игроков"]
["Таблица рекордов"]
["Командный турнирный рейтинг"]
["Командный дуэльный рейтинг"]
["Победители прошлого месяца"]
["Победители прошлого месяца (дуэли)"]
[]
["Справочник"]
[]
["Статистика сервера"]
["Цены на рыбу"]
["Список рыбы"]
["Список предметов"]
["Список водоемов"]
["Вопросы и ответы"]
["Форум"]
[]
["Мобильная версия"]
[]
["Загрузить игру МРР"]
["Помощь и советы МРР"]
["Таблица рекордов МРР"]
["Цены на рыбу МРР"]
["Карта сервера МРР"]
["Расписание турниров МРР"]
["Рейтинг команд МРР"]
[]
["Правила пользования и Тариф"]
["Лицензионный договор"]
["Регистрация"]
["Забыли пароль?"]
[]
["© ООО «Русская рыбалка». 2006-2024. Все права защищены."]

{"sheet":"Вычисления","index":3,"n_rows":56,"n_cols":6,"rows_kept":56,"cut":false,"hidden":true,"merged":[]}
[]
[null,"Продано (нижняя строка)",16096,12734,{"$f":"VLOOKUP(MAX(Table_0[Место:]),'Выгрузка с сайта'!$A:$E,5,0)","v":16096}]
[null,"Продано (целевая рыба)",5222,614,{"$f":"VLOOKUP($A$5,'Выгрузка с сайта'!$C:$E,3,0)","v":5222}]
[null,"х",{"$f":" 1 - C3/C2","v":0.67557157057654083},{"$f":" 1 - D3/D2","v":0.95178262918171819},{"$f":" 1 - E3/E2","v":0.67557157057654083},1]
["Финвал","Кэф ( f(x) = ax + b)",0.75380366565884604,0.96727073208966918,{"$f":"E7*E4+E6","v":0.75380366565884604},{"$f":"F7*F4+F6","v":1.0045350644866518}]
[null,"b",{"$f":"C5-C7*C4","v":0.2316946593674708},{"$f":"D5-D7*D4","v":0.2316946593674708},{"$f":"D6","v":0.2316946593674708},{"$f":"E6","v":0.2316946593674708}]
[null,"a",{"$f":"($C$5-$D$5)/($C$4-$D$4)","v":0.77284040511918106},{"$f":"($C$5-$D$5)/($C$4-$D$4)","v":0.77284040511918106},{"$f":"D7","v":0.77284040511918106},{"$f":"E7","v":0.77284040511918106}]
[]
[null,"Продано (нижняя строка)",4282,4915,{"$f":"VLOOKUP(MAX(Table_0[Место:]),'Выгрузка с сайта'!$A:$E,5,0)","v":16096}]
[null,"Продано (целевая рыба)",30,2819,{"$f":"VLOOKUP($A$12,'Выгрузка с сайта'!$C:$E,3,0)","v":201}]
[null,"х",{"$f":" 1 - C10/C9","v":0.99299392807099485},{"$f":" 1 - D10/D9","v":0.42644964394710072},{"$f":" 1 - E10/E9","v":0.9875124254473161},1]
["Кит Горбатый","Кэф ( f(x) = ax + b)",1.0918462662952506,0.61343206646451676,{"$f":"E14*E11+E13","v":1.0872174512757282},{"$f":"F14*F11+F13","v":1.0977624927753302}]
[null,"b",{"$f":"C12-C14*C11","v":0.25331976651862631},{"$f":"D12-D14*D11","v":0.25331976651862631},{"$f":"D13","v":0.25331976651862631},{"$f":"E13","v":0.25331976651862631}]
[null,"a",{"$f":"($C$12-$D$12)/($C$11-$D$11)","v":0.84444272625670402},{"$f":"($C$12-$D$12)/($C$11-$D$11)","v":0.84444272625670402},{"$f":"D14","v":0.84444272625670402},{"$f":"E14","v":0.84444272625670402}]
[]
[null,"Продано (нижняя строка)",12730,4915,{"$f":"VLOOKUP(MAX(Table_0[Место:]),'Выгрузка с сайта'!$A:$E,5,0)","v":16096}]
[null,"Продано (целевая рыба)",58,1143,{"$f":"VLOOKUP($A$19,'Выгрузка с сайта'!$C:$E,3,0)","v":145}]
[null,"х",{"$f":" 1 - C17/C16","v":0.99544383346425769},{"$f":" 1 - D17/D16","v":0.76744659206510679},{"$f":" 1 - E17/E16","v":0.99099155069582501},1]
["Кит синий северный","Кэф ( f(x) = ax + b)",1.4393780101620015,1.1860464077026547,{"$f":"E21*E18+E20","v":1.4344310032534637},{"$f":"F21*F18+F20","v":1.4444404440865881}]
[null,"b",{"$f":"C19-C21*C18","v":0.3333234809833221},{"$f":"D19-D21*D18","v":0.33332348098332198},{"$f":"D20","v":0.33332348098332198},{"$f":"E20","v":0.33332348098332198}]
[null,"a",{"$f":"($C$19-$D$19)/($C$18-$D$18)","v":1.1111169631032662},{"$f":"($C$19-$D$19)/($C$18-$D$18)","v":1.1111169631032662},{"$f":"D21","v":1.1111169631032662},{"$f":"E21","v":1.1111169631032662}]
[]
[null,"Продано (нижняя строка)",16096,12734,{"$f":"VLOOKUP(MAX(Table_0[Место:]),'Выгрузка с сайта'!$A:$E,5,0)","v":16096}]
[null,"Продано (целевая рыба)",510,340,{"$f":"VLOOKUP($A$26,'Выгрузка с сайта'!$C:$E,3,0)","v":510}]
[null,"х",{"$f":" 1 - C24/C23","v":0.96831510934393639},{"$f":" 1 - D24/D23","v":0.97329982723417618},{"$f":" 1 - E24/E23","v":0.96831510934393639},1]
["Кашалот","Кэф ( f(x) = ax + b)",0.81825289620895802,0.82147991845785195,{"$f":"E28*E25+E27","v":0.81825289620895802},{"$f":"F28*F25+F27","v":0.83876515976174448}]
[null,"b",{"$f":"C26-C28*C25","v":0.19138203398595699},{"$f":"D26-D28*D25","v":0.19138203398595699},{"$f":"D27","v":0.19138203398595699},{"$f":"E27","v":0.19138203398595699}]
[null,"a",{"$f":"($C$26-$D$26)/($C$25-$D$25)","v":0.64738312577578749},{"$f":"($C$26-$D$26)/($C$25-$D$25)","v":0.64738312577578749},{"$f":"D28","v":0.64738312577578749},{"$f":"E28","v":0.64738312577578749}]
[]
[null,"Продано (нижняя строка)",12730,4915,{"$f":"VLOOKUP(MAX(Table_0[Место:]),'Выгрузка с сайта'!$A:$E,5,0)","v":16096}]
[null,"Продано (целевая рыба)",52,455,{"$f":"VLOOKUP($A$33,'Выгрузка с сайта'!$C:$E,3,0)","v":186}]
[null,"х",{"$f":" 1 - C31/C30","v":0.99591516103692068},{"$f":" 1 - D31/D30","v":0.90742624618514756},{"$f":" 1 - E31/E30","v":0.98844433399602383},1]
["Кит горбатый-альбинос","Кэф ( f(x) = ax + b)",1.72785708885921,1.6098661823686109,{"$f":"E35*E32+E34","v":1.7178955060296943},{"$f":"F35*F32+F34","v":1.7333038033197636}]
[null,"b",{"$f":"C33-C35*C32","v":0.39990620557269629},{"$f":"D33-D35*D32","v":0.39990620557269629},{"$f":"D34","v":0.39990620557269629},{"$f":"E34","v":0.39990620557269629}]
[null,"a",{"$f":"($C$33-$D$33)/($C$32-$D$32)","v":1.3333975977470673},{"$f":"($C$33-$D$33)/($C$32-$D$32)","v":1.3333975977470673},{"$f":"D35","v":1.3333975977470673},{"$f":"E35","v":1.3333975977470673}]
[]
[null,"Продано (нижняя строка)",12730,4915,{"$f":"VLOOKUP(MAX(Table_0[Место:]),'Выгрузка с сайта'!$A:$E,5,0)","v":16096}]
[null,"Продано (целевая рыба)",13,16,{"$f":"VLOOKUP($A$40,'Выгрузка с сайта'!$C:$E,3,0)","v":13}]
[null,"х",{"$f":" 1 - C38/C37","v":0.9989787902592302},{"$f":" 1 - D38/D37","v":0.99674465920651067},{"$f":" 1 - E38/E37","v":0.99919234592445327},1]
["Кит серый","Кэф ( f(x) = ax + b)",0.952566527000136,0.95092123799865036,{"$f":"E42*E39+E41","v":0.95272379655098383},{"$f":"F42*F39+F41","v":0.95331858008701886}]
[null,"b",{"$f":"C40-C42*C39","v":0.21688505731632424},{"$f":"D40-D42*D39","v":0.21688505731632424},{"$f":"D41","v":0.21688505731632424},{"$f":"E41","v":0.21688505731632424}]
[null,"a",{"$f":"($C$40-$D$40)/($C$39-$D$39)","v":0.73643352277069463},{"$f":"($C$40-$D$40)/($C$39-$D$39)","v":0.73643352277069463},{"$f":"D42","v":0.73643352277069463},{"$f":"E42","v":0.73643352277069463}]
[]
[null,"Продано (нижняя строка)",12730,4915,{"$f":"VLOOKUP(MAX(Table_0[Место:]),'Выгрузка с сайта'!$A:$E,5,0)","v":16096}]
[null,"Продано (целевая рыба)",23,303,{"$f":"VLOOKUP($A$47,'Выгрузка с сайта'!$C:$E,3,0)","v":320}]
[null,"х",{"$f":" 1 - C45/C44","v":0.99819324430479184},{"$f":" 1 - D45/D44","v":0.93835198372329609},{"$f":" 1 - E45/E44","v":0.98011928429423456},1]
["Кит японский","Кэф ( f(x) = ax + b)",2.1636521239056639,2.0639128574312569,{"$f":"E49*E46+E48","v":2.1335276997838535},{"$f":"F49*F46+F48","v":2.1666634991004274}]
[null,"b",{"$f":"C47-C49*C46","v":0.49993279347674613},{"$f":"D47-D49*D46","v":0.49993279347674613},{"$f":"D48","v":0.49993279347674613},{"$f":"E48","v":0.49993279347674613}]
[null,"a",{"$f":"($C$47-$D$47)/($C$46-$D$46)","v":1.6667307056236815},{"$f":"($C$47-$D$47)/($C$46-$D$46)","v":1.6667307056236815},{"$f":"D49","v":1.6667307056236815},{"$f":"E49","v":1.6667307056236815}]
[]
[null,"Продано (нижняя строка)",12730,4915,{"$f":"VLOOKUP(MAX(Table_0[Место:]),'Выгрузка с сайта'!$A:$E,5,0)","v":16096}]
[null,"Продано (целевая рыба)",199,117,{"$f":"VLOOKUP($A$54,'Выгрузка с сайта'!$C:$E,3,0)","v":106}]
[null,"х",{"$f":" 1 - C52/C51","v":0.98436763550667716},{"$f":" 1 - D52/D51","v":0.97619532044760937},{"$f":" 1 - E52/E51","v":0.99341451292246519},1]
["Сейвал или кит ивасевый","Кэф ( f(x) = ax + b)",0.61007123665853236,0.60618136174091253,{"$f":"E56*E53+E55","v":0.614377387521305},{"$f":"F56*F53+F55","v":0.61751196087268223}]
[null,"b",{"$f":"C54-C56*C53","v":0.14152995461073287},{"$f":"D54-D56*D53","v":0.14152995461073287},{"$f":"D55","v":0.14152995461073287},{"$f":"E55","v":0.14152995461073287}]
[null,"a",{"$f":"($C$54-$D$54)/($C$53-$D$53)","v":0.47598200626194936},{"$f":"($C$54-$D$54)/($C$53-$D$53)","v":0.47598200626194936},{"$f":"D56","v":0.47598200626194936},{"$f":"E56","v":0.47598200626194936}]